Workbook

Sheet Cover Page
D1: Add company logo
K2: Template version 25.1a (for incinerators) - 27/11/25
K4: Note that there is another version of this template available for co-incinerators
B8: Add photo
K13: Notes:
K14: This template may require adjustments by individual operators to meet specific reporting requirements as defined in the site Permit(s)
B29: Annual Performance Report 2025
B31: Permit EPR/XP3833DK
B33: Ferrybridge 2
B37: enfinium Ferrybridge 2 Ltd
B39: Year: | C39: 2025
B41: Address: | C41: Stranglands Lane, Knottingley, West Yorkshire, WF11 8SQ
B43: Tel: | C43: 01977 636936
B45: Email: | C45: john.warren@enfinium.co.uk
B47: Prepared by: | C47: John Warren | F47: Position: | G47: Environmental Manager
B49: Approved by: | C49: Steve Tosney | F49: Position: | G49: Plant Manager
B51: Version: | C51: 1
B53: Issue Date: | C53: 2026-01-30

Sheet Facility Info
A1: =+'Cover Page'!$B$29 -> Annual Performance Report 2025 | E1: =+'Cover Page'!$B$33 -> Ferrybridge 2
A3: Plant Description and Design | K3: Notes:
A5: Ferrybridge 2 is designed for the disposal of waste with energy recovery in an incineration plant and is permitted under Section 5.1 A(1)(b) the incineration of non-hazardous waste in an incineration plant with a capacity exceeding 3 tonnes per hour. The installation is located on land to the north of Ferrybridge 1 site, close to the A1(M). It lies approximately 1km northwest of the village of Ferrybridge, 2km northwest of Knottingley, 1.8km southeast of Ferry Fryston, and 3km northeast of Pontefract, at grid reference SE 472 254. The facility has a throughput limit of 725,000 tonnes per year of waste which can include refuse derived fuel, waste wood and commercial and industrial waste. The facility consists of two combustion lines and generates approximately 80 MWe of electricity, of which approximately 73 MWe is exported. Moving grate technology is used for burning the waste material. The furnace design ensures that a temperature of at least 850 degrees celcius for a period of at least two seconds is achieved in the combustion chamber. Auxillary burners firing a low sulphur gas oil are automatically triggered by online process monitoring equipment are used to ensure the temperature does not fall below 850 degrees celcius. Hot gases from the furnace pass in a boiler. Steam raised in the boiler is passed to a turbine to generate electricity for export to the National Grid. | K5: Include summary of plant design, design capacity, no. of combustion lines, electrical and heat capacity and any other general information that describes the facility, its location and purpose
A16: Summary of Operational Processes and Procedures
A18: Key processes include waste reception, waste storage, water use, drainage, flue gas and air supply systems, boilers, treatment of exhaust gases, treatment and storage of residues and water recycling, stacks, devices and systems for controlling incineration operations, recording and monitoring conditions. The site has an Environmental Management System accredited to ISO 14001. Health and Safety management system covering all aspects of health and safety comprising policy, procedures, risk assessments, Key Performance Indicators (KPIs) and objectives reviewed periodically. The site has accreditation to ISO 45001:2018 for Health & Safety Management and ISO 9001 for Quality Management. Maintenance across the facilities is broken down in to reactive (breakdown) maintenance, and planned preventive maintenance. Preventive maintenance is conducted via the philosophy of Risk Based Inspections to ensure the safety of personnel and availability of the plant is cost effectively maintained. | K18: Include summary of key processes and procedures such as (but not limited to); waste reception, control rooms, grate, bed and boiler, energy & heat generation, cooling systems, residue management, emission controls, health and safety systems, maintenance

Sheet Operational Data
A1: =+'Cover Page'!$B$29 -> Annual Performance Report 2025 | E1: =+'Cover Page'!$B$33 -> Ferrybridge 2
A3: Operational Data
A4: Plant Size: | B4: 725000 | C4: tonnes pa | J4: Notes:
A5: Nominal net thermal input: | B5: 80 | C5: MWth | J5: * Export capacity = nominal generation capacity at the generator terminals minus nominal parasitic load. ** CHP and district heating plants only - put N/A if no heat export. *** Combusted tonnage = tonnes delivered in period + (tonnes in bunker at start of period – tonnes in bunker at end of period), or equivalent calculation depending on plant type **** Availability Definition: The availability of a line is to be calculated by the number of hours the line reported Continuously Monitored emission levels to the Regulator through the calendar year divided by the total number of hours in that year. The overall plant availability is calculated as the mean of all lines in the plant. For clarity this includes periods of abnormal operation. Rationale: The primary function of an Energy from Waste facility is the disposal of waste. It follows therefore that the availability of a plant is determined by the period of time a facility spends undertaking this activity. *****NCV of waste: This should be completed for all plants which have a boiler. Calculate using total thermal power produced by boiler/boiler efficiency, or other suitable calculation.
A6: Nominal electrical export capacity*: | B6: 73 | C6: MWe
A7: Nominal heat export capacity**: | B7: N/A | C7: MWth
A8: No. of combustion lines: | B8: 2 | C8: No. of steam turbines: | E8: 1
A10: Waste types received | B10: Unit | C10: Q1 | D10: Q2 | E10: Q3 | F10: Q4 | G10: Year Total | H10: %
A11: Refuse Derived Fuel (incl. SRF) - H'hold/LA | C11: 179307.16 | D11: 162796.72 | E11: 158954.96 | F11: 143845.51 | G11: =SUM(C11:F11) -> 644904.35 | H11: =IF(G11>0,G11/$G$12,"-") -> 1
A12: Total waste received | C12: =SUM(C11:C11) -> 179307.16 | D12: =SUM(D11:D11) -> 162796.72 | E12: =SUM(E11:E11) -> 158954.96 | F12: =SUM(F11:F11) -> 143845.51 | G12: =SUM(C12:F12) -> 644904.35
A13: Rejected Waste (No. loads) | C13: 0 | D13: 5 | E13: 7 | F13: 0 | G13: =SUM(C13:F13) -> 12 | H13: =IF(G13>0,G13/$G$12,"-") -> 1.860741054e-05
A14: Unprocessed waste transferred out | C14: 0 | D14: 0 | E14: 0 | F14: 0 | G14: =SUM(C14:F14) -> 0 | H14: =IF(G14>0,G14/$G$12,"-") -> -
A15: Total waste combusted *** | C15: 179030.82 | D15: 159203.06 | E15: 161576.96 | F15: 144270.09 | G15: =SUM(C15:F15) -> 644080.93
A17: Energy Usage / Export | B17: Unit | C17: Q1 | D17: Q2 | E17: Q3 | F17: Q4 | G17: Year Total | H17: KWh/te | J17: Password for protected cells A password has been set to prevent accidental editing of cells with formulae. If you still need to make an edit for some reason then the password = 1234
A18: Power generated at generator terminals | B18: MWh | C18: 180669 | D18: 174568.11 | E18: 168145.98 | F18: 151081.34 | G18: =SUM(C18:F18) -> 674464.43 | H18: =IF(G18>0,G18*1000/$G$15,"-") -> 1047.17342
A19: Power exported to grid and other external user(s) | C19: 165210 | D19: 158988.2 | E19: 152759.53 | F19: 137629 | G19: =SUM(C19:F19) -> 614586.73 | H19: =IF(G19>0,G19*1000/$G$15,"-") -> 954.2073075
A20: Power imported | C20: 15.18 | D20: 0 | E20: 0 | F20: 0 | G20: 15.18 | H20: =IF(G20>0,G20*1000/$G$15,"-") -> 0.02356846678
A21: Indicative parasitic load | B21: % | C21: =IF(C18>0,(C18-C19)/C18,"-") -> 0.08556531558 | D21: =IF(D18>0,(D18-D19)/D18,"-") -> 0.08924831689 | E21: 0.09150649929 | F21: 0.0890403805 | G21: =IF(G18>0,1-G19/(G18+G20),"-") -> 0.08879865175
A22: Thermal Energy Exported ** | C22: N/A | D22: N/A | E22: N/A | F22: N/A | G22: =SUM(C22:F22) -> 0 | H22: =IF(G22>0,G22*1000/$G$15,"-") -> -
A23: R1 value (if applicable) | B23: R1 | C23: - | D23: - | E23: - | F23: - | G23: 0.86
A25: Waste Disposal & Recovery | B25: Unit | C25: Q1 | D25: Q2 | E25: Q3 | F25: Q4 | G25: Year Total | H25: % inputs
A26: APC Residues - produced | B26: tonnes | C26: 7060.6 | D26: 7474.72 | E26: 7314.62 | F26: 6560.14 | G26: =SUM(C26:F26) -> 28410.08 | H26: =IF(G26>0,G26/$G$15,"-") -> 0.04410948792
A27: IBA - produced | C27: 35239.02 | D27: 33250.7 | E27: 31438.14 | F27: 26361.18 | G27: 126289.04 | H27: =IF(G27>0,G27/$G$15,"-") -> 0.1960763533
A28: Metals recycling | C28: 2226.78 | D28: 2026.18 | E28: 2158.62 | F28: 2015.6 | G28: =SUM(C28:F28) -> 8427.18 | H28: 0.01308403899
A29: APCr waste | C29: 19.54 | D29: 0 | E29: 2.77 | F29: 16.66 | G29: =SUM(C29:F29) -> 38.97 | H29: 6.050481886e-05
A30: Waste oil | C30: 2.56 | D30: 1.34 | E30: 0 | F30: 1.98 | G30: 5.88 | H30: 9.129287526e-06
A31: Ion exchange resin | C31: 0.04 | D31: 0 | E31: 0.02 | F31: 0 | G31: 0.06 | H31: 9.315599516e-08
A32: Oil contaminated waste | C32: 2.2 | D32: 0 | E32: 3.3 | F32: 0 | G32: 5.5 | H32: 8.539299557e-06
A33: APCr filter bags | C33: 0 | D33: 0 | E33: 1 | F33: 0 | G33: 1 | H33: 1.552599919e-06
A34: Gases in pressurised containers | C34: 0 | D34: 0 | E34: 0.45 | F34: 0 | G34: 0.45 | H34: 6.986699637e-07
A35: Mixed packaging | C35: 0.28 | D35: 0.48 | E35: 0.34 | F35: 0.52 | G35: 1.62 | H35: 2.515211869e-06
A36: Mixed municipal waste | C36: 3.58 | D36: 5.74 | E36: 4.74 | F36: 16.52 | G36: 30.58 | H36: 4.747850554e-05
A37: Wood waste | C37: 2 | D37: 1.44 | E37: 3.34 | F37: 2.96 | G37: 9.74 | H37: 1.512232321e-05
A38: Food waste | C38: 0.1 | D38: 0.02 | E38: 0.02 | F38: 0 | G38: 0.14 | H38: 2.173639887e-07
A39: Waste Electrical and Electronic Equipment | C39: 0.6 | D39: 0 | E39: 0 | F39: 0 | G39: 0.6 | H39: 9.315599516e-07
A40: Rubble | C40: 0 | D40: 37.7 | E40: 36.72 | F40: 81.58 | G40: 156 | H40: 0.0002422055874
A41: Sewage | C41: 0 | D41: 0.48 | E41: 54.58 | F41: 77.12 | G41: 132.18 | H41: 0.0002052226573
A42: Mixed metals | C42: 0 | D42: 0 | E42: 21.56 | F42: 9.34 | G42: 30.9 | H42: 4.797533751e-05
A43: Aqueous liquid waste | C43: 0 | D43: 0 | E43: 74.06 | F43: 1854.5 | G43: 1928.56 | H43: 0.002994282101
A44: Septic tank sludge | C44: 0 | D44: 0 | E44: 6.04 | F44: 0 | G44: 6.04 | H44: 9.377703513e-06
C45: 0 | D45: 0 | E45: 0 | F45: 0 | G45: 0 | H45: -
A48: Raw Material Usage | B48: Unit | C48: Q1 | D48: Q2 | E48: Q3 | F48: Q4 | G48: Year Total | H48: Qty./te
A49: Mains Water | B49: ltrs | C49: 11462500 | D49: 18744000 | E49: 32538700 | F49: 30019600 | G49: =SUM(C49:F49) -> 92764800 | H49: =IF(G49>0,G49/$G$15,"-") -> 144.026621
A50: Other Water | B50: ltrs | C50: 27160970 | D50: 23294000 | E50: 18121170 | F50: 9002140 | G50: 77578280 | H50: 120.4480313
A51: Ammonia | B51: kgs | C51: 31486 | D51: 41530 | E51: 21156 | F51: 25152 | G51: 119324 | H51: 0.1852624328
A52: Activated Carbon | B52: kgs | C52: 63056 | D52: 65650 | E52: 61941 | F52: 54241 | G52: 244888 | H52: 0.3802130891
A53: Lime / hydrated lime | B53: kgs | C53: 3411000 | D53: 3682890 | E53: 3631620 | F53: 3132840 | G53: 13858350 | H53: 21.51647309
A54: Fuel oil | B54: ltrs | C54: 68228 | D54: 188420 | E54: 248084 | F54: 579825 | G54: 1084557 | H54: 1.683883111
A56: Summary | B56: Line/Unit | C56: Q1 | D56: Q2 | E56: Q3 | F56: Q4 | G56: Year Total | I56: Hrs in year
A57: Availability of waste combustion by line, hrs **** | B57: 1 | C57: 2160 | D57: 2086 | E57: 2176 | F57: 1760 | G57: =SUM(C57:F57) -> 8182 | H57: =+G57/$I$57 -> 0.9340182648 | I57: 8760 | J57: Change this figure to 8784 in a leap year
B58: 2 | C58: 2157.1 | D58: 2180.5 | E58: 2131.3 | F58: 1918.7 | G58: 8387.6 | H58: =+G58/$I$57 -> 0.9574885845
A59: Hours of turbine operations, hrs | B59: 1 | C59: 2157 | D59: 2184 | E59: 2185 | F59: 2013 | G59: 8539 | H59: =+G59/$I$57 -> 0.9747716895
A60: Net calorific value of waste***** | B60: MJ/kg | C60: 12334 | D60: 13066 | E60: 12254 | F60: 13051 | G60: =AVERAGE(C60:F60) -> 12676.25
A61: Abnormal operation events | B61: qty. | C61: 0 | D61: 2 | E61: 2 | F61: 7 | G61: 11 | H61: =IF(G61>0,"yes","no") -> yes
A62: Abnormal operation duration | B62: hours | C62: 0 | D62: 1 | E62: 1 | F62: 3.5 | G62: 5.5 | H62: =+(G62)/I57 -> 0.0006278538813
A63: Permit Breaches | B63: qty. | C63: 0 | D63: 0 | E63: 1 | F63: 2 | G63: 3 | H63: =IF(G63>0,"yes","no") -> yes

Sheet Operational Summary
A1: =+'Cover Page'!$B$29 -> Annual Performance Report 2025 | E1: =+'Cover Page'!$B$33 -> Ferrybridge 2
A3: Summary of Plant Operations and Maintenance during the reporting year | K3: Notes:
A5: Operational Summary January 2025 - Feed hopper cooling leak February - Boiler trip during isolation of turbine hall drains pumps. March - None. April - None. May - Furnace explosion resulting in ID fan trip, delays during return to service due to burner faults, electrical fault due to comms failure. June - Scheduled maintenance outage. July - Waste crane fault, ash extractor repairs. August - Turbine hotwell pump lost suction limit switch whilst pump 1 was isolated for maintenance, delays on start-up due to high temperature. September - Grate cooling leak. October - Scheduled maintenance outage, grate ram hydraulic failure, grate cooling leak. November - Grate cooling leak. December - None. Maintenance Summary JANUARY • Line 1 grate cooling pump replaced • Line 1 primary air preheater leak repaired • Line 1 saturated steam valve bonnet overhauled • Siemens TCS PLC card replaced • Line 2 Hydrostep level indication repaired FEBRUARY • Line 2 rotary valve replaced • Overhaul of vibrating table drive system • Installation of boiler sample station • 11KV/400v Transformer inspection • WC 2 umbilical replacement • Line 2 recirc fan VFD replacement • ACC Fan capacitor bank replacement MARCH • General plant PM and service works APRIL • Process water pump 3 replaced • Overhaul of Line 2 APCR conveyor • Feed pump 2 overhaul • Line 1 Hydrostep level indication repaired • ACC thermography check with drone • Statutory lift inspections MAY • Replaced both route 2 ash belts • Waste grab overhaul (Blue grab) • WC2 encoder repairs • Line 2 furnace temperature probe replacements • Annual dry riser pressure test JUNE • Line 1 pitstop Boiler grate and refractory repairs JULY • General plant PM and service works AUGUST • Waste cane 1 umbilical replaced • Fire system service • Waste crane grab overhaul SEPTEMBER • General maintenance and outage preparation OCTOBER Minor outage Line 1 and 2 – Mechanical • Full clean and inspection of internal boiler/furnace gas path. • Bunker side furnace nozzle “Y” piece replacements and material upgrade to SS316 • 3rd pass LHS wall thermal spray application • NDT checks on boiler as part of the maintenance strategy – Vertex model • Inspection of mechanical grate on lines 1 and 2 inclusive of minor repairs. • Pass 1 - General refractory maintenance carried out. Defective areas replaced. • Inspections of site wide safety valves and test certs provided. • Thorough statutory inspections carried out as per PSSR WSE. • Full inspection and overhaul of ancillary plant equipment inclusive of Ash, FGT, APCR systems. • Site wide valve inspections and repairs. • Inconel repairs carried out to furnace side walls, front and rear. • Combustion fan maintenance strategy continued including inspection and replacement activities • Detailed ATEX area inspection, intrusive of all parts associated with the PAC system • Statutory stack inspections • Ram feeder hydraulics replaced as part of maintenance strategy • Defective grate rams replaced • Feed hopper internal plates replaced Line 1 and 2– Electrical • Circuit breaker service and protection testing • Quantum VFD service - The service included a general clean down, filter cleaning, terminal tightness, visual inspection, and module phase alignment. • Transmitter calibrations • Actuator servicing and health checks Common – Mechanical • Turbine outage as per strategy completed inclusive of the generator • Turbine bypass valve internals replaced, line 1 and line 2 • Turbine lube oil tank service carried out – Inspection and filter replacements Common– Electrical • GCB circuit breaker inspection & maintenance • Circuit breaker service and protection testing • Transformer inspection and life time assessment completed • Transmitter calibrations NOVEMBER • Grate cooling repairs • EG10 SV7 servicing • Hot true testing carried out on boiler safety valves. Boiler drum and superheater. • Site wide compressor major servicing commenced • Waste crane 2 hoist coupling replaced DECEMBER • Line 1 refractory repair Line 1 grate cooling feed pipework and undergrate repairs | K5: Include summary of key operational and/or maintenance activity undertaken in the year, such as any major component upgrades and/or replacements
A29: =+'Cover Page'!C39 -> 2025 | B29: Plant shut-downs
A30: Start date | B30: End date | C30: Reason for shut-down | K30: Provide a very brief reason for plant shut-down e.g. "Shut-down prior to major outage"; "Emergency shut-down due to boiler tube leak". All emergency shut-downs must be listed (irrespective of whether or not they were required to be reported to the EA). There is no need to include periods of hot-standby here (e.g. to clear feed chute hopper blockages). For clinical waste incinerators which require regular shut-downs for boiler cleaning, there is no need to record these here (only those prior to major outages, and emergency shut-downs).
A31: 16/06/2025 | B31: 19/06/2025 | C31: Line A1 pitstop outage - boiler grate and refractory repairs
A32: 2025-04-09 | B32: 2025-06-09 | C32: Line A2 boiler tube repairs
A33: 2025-06-16 | B33: 16/10/2025 | C33: Line A1 maintenance outage
A34: 2025-10-10 | B34: 18/10/2025 | C34: Line A2 maintenance outage
A35: 23/10/2025 | B35: 24/10/2025 | C35: Line A2 economiser screw repair
A36: 27/10/2025 | B36: 29/10/2025 | C36: Line A1 grate cooling water leak repair
A37: 17/11/2025 | B37: 21/11/2025 | C37: Line A1 grate repairs

Sheet Perf. Form 1
A1: =+'Cover Page'!C39 -> 2025 | B1: Annual Reporting Performance Form 1
A3: =+'Cover Page'!B31 -> Permit EPR/XP3833DK | F3: Operator: | G3: =+'Cover Page'!B37 -> enfinium Ferrybridge 2 Ltd
A4: Facility: | B4: =+'Cover Page'!B33:I33 -> Ferrybridge 2 | F4: Form: | G4: Performance 1
A6: Reporting Period from: | D6: 2025-01-01 | F6: to: | G6: 2025-12-31
A8: =+A1 -> 2025 | B8: Annual Reporting of Waste Disposal and Recovery
A9: Waste Description | C9: Disposal Route(s) | E9: Disposal Tonnes | G9: Recovery Tonnes | I9: % / tonne of waste incinerated
A10: 1) Hazardous Wastes
A11: APC Residues | C11: D9/D5 | E11: 267 | G11: 28143.08 | I11: =IF((E11+G11)>0,(E11+G11)/'Operational Data'!$G$15, "-") -> 0.04410948792
A12: APCr filter bags | C12: D15 | E12: 1 | I12: =IF((E12+G12)>0,(E12+G12)/'Operational Data'!$G$15, "-") -> 1.552599919e-06
A13: APCr waste | C13: D15 | E13: 39 | I13: =IF((E13+G13)>0,(E13+G13)/'Operational Data'!$G$15, "-") -> 6.055139686e-05
A14: Waste oil | C14: R13 | G14: 6 | I14: =IF((E14+G14)>0,(E14+G14)/'Operational Data'!$G$15, "-") -> 9.315599516e-06
A15: Ion exchange resin | C15: D15 | E15: 0 | I15: =IF((E15+G15)>0,(E15+G15)/'Operational Data'!$G$15, "-") -> -
A16: Oil contaminated waste | C16: R13 | G16: 6 | I16: =IF((E16+G16)>0,(E16+G16)/'Operational Data'!$G$15, "-") -> 9.315599516e-06
A17: Aqueous liquid waste | C17: D9 | E17: 1497.46 | I17: =IF((E17+G17)>0,(E17+G17)/'Operational Data'!$G$15, "-") -> 0.002324956275
A18: Gases in pressurised containers | C18: R13 | G18: 0 | I18: =IF((E18+G18)>0,(E18+G18)/'Operational Data'!$G$15, "-") -> -
A19: Total Hazardous Waste | E19: =SUM(E11:F18) -> 1804.46 | G19: =SUM(G11:H18) -> 28155.08 | I19: =IF((E19+G19)>0,(E19+G19)/'Operational Data'!$G$15, "-") -> 0.04651517939
A21: 2) Non-Hazardous Wastes
A22: IBA - produced | C22: R5 | G22: 126289 | I22: =IF((E22+G22)>0,(E22+G22)/'Operational Data'!$G$15, "-") -> 0.1960762912
A23: Ferrous metals from bottom ash | C23: R4 | G23: 8427 | I23: =IF((E23+G23)>0,(E23+G23)/'Operational Data'!$G$15, "-") -> 0.01308375952
A24: Mixed metals | C24: R4 | G24: 31 | I24: =IF((E24+G24)>0,(E24+G24)/'Operational Data'!$G$15, "-") -> 4.81305975e-05
A25: Mixed packaging | C25: R13 | G25: 2 | I25: =IF((E25+G25)>0,(E25+G25)/'Operational Data'!$G$15, "-") -> 3.105199839e-06
A26: Mixed municipal waste | C26: R13 | G26: 31 | I26: =IF((E26+G26)>0,(E26+G26)/'Operational Data'!$G$15, "-") -> 4.81305975e-05
A27: Wood waste | C27: R3 | G27: 10 | I27: =IF((E27+G27)>0,(E27+G27)/'Operational Data'!$G$15, "-") -> 1.552599919e-05
A28: Sewage waste | C28: D8 | E28: 132 | I28: =IF((E28+G28)>0,(E28+G28)/'Operational Data'!$G$15, "-") -> 0.0002049431894
A29: Waste Electrical and Electronic Equipment | C29: R13 | G29: 1 | I29: =IF((E29+G29)>0,(E29+G29)/'Operational Data'!$G$15, "-") -> 1.552599919e-06
A30: Food waste | C30: R3 | G30: 0 | I30: =IF((E30+G30)>0,(E30+G30)/'Operational Data'!$G$15, "-") -> -
A31: Rubble | C31: R13 | G31: 156 | I31: =IF((E31+G31)>0,(E31+G31)/'Operational Data'!$G$15, "-") -> 0.0002422055874
A32: Aqueous liquid waste | C32: D9 | E32: 431.1 | I32: =IF((E32+G32)>0,(E32+G32)/'Operational Data'!$G$15, "-") -> 0.0006693258252
A33: Septic tank sludge | C33: D8 | E33: 6 | I33: =IF((E33+G33)>0,(E33+G33)/'Operational Data'!$G$15, "-") -> 9.315599516e-06
A34: Total Non-Hazardous Waste | E34: =SUM(E22:F33) -> 569.1 | G34: =SUM(G22:H33) -> 134947 | I34: =IF((E34+G34)>0,(E34+G34)/'Operational Data'!$G$15, "-") -> 0.2104022859
A35: TOTAL WASTE | E35: =+E34+E19 -> 2373.56 | G35: =+G34+G19 -> 163102.08 | I35: =IF((E35+G35)>0,(E35+G35)/'Operational Data'!$G$15, "-") -> 0.2569174653
A37: Operator’s comments :
A42: =+A1 -> 2025 | B42: Annual Reporting of Water and Other Raw Material Usage
A43: Raw Material | E43: Usage | G43: Unit | H43: Specific Usage | J43: Unit
A44: Mains Water | E44: =+'Operational Data'!G49/1000 -> 92764.8 | G44: m3 | H44: =IF(E44>0,E44/'Operational Data'!$G$15,"-") -> 0.144026621 | J44: m3/te
A45: Total Water | E45: 170343.08 | G45: m3 | H45: =IF(E45>0,E45/'Operational Data'!$G$15,"-") -> 0.2644746523 | J45: m3/te
A46: Urea / Ammonia | E46: =+'Operational Data'!G51 -> 119324 | G46: kg | H46: =IF(E46>0,E46/'Operational Data'!$G$15,"-") -> 0.1852624328 | J46: kg/te
A47: Activated Carbon | E47: =+'Operational Data'!G52 -> 244888 | G47: kg | H47: =IF(E47>0,E47/'Operational Data'!$G$15,"-") -> 0.3802130891 | J47: kg/te
A48: Lime / hydrated lime / Sodium Bicarb. | E48: =+'Operational Data'!G53 -> 13858350 | G48: kg | H48: =IF(E48>0,E48/'Operational Data'!$G$15,"-") -> 21.51647309 | J48: kg/te
A49: Operator’s comments :
A58: =+A42 -> 2025 | B58: Annual Reporting of other performance indicators
A59: Parameter | C59: Results by Line
C60: A1 | D60: A2 | E60: Turbine
A61: Operating hours for the year, hours | C61: 8182 | D61: 8388 | E61: 8539
A62: Number of periods of abnormal operation, qty. | C62: 6 | D62: 5
A63: Cumulative hours of abnormal operation for this year, hours | C63: 3 | D63: 2.5
A65: Operator’s comments :
A69: Signed: | G69: Date:

Sheet Energy Form 1
A1: =+'Cover Page'!C39 -> 2025 | B1: Annual Reporting of Energy Usage/Export
A3: =+'Cover Page'!B31 -> Permit EPR/XP3833DK | F3: Operator: | G3: =+'Cover Page'!B37 -> enfinium Ferrybridge 2 Ltd
A5: Facility: | B5: =+'Cover Page'!B33:I33 -> Ferrybridge 2 | F5: Form: | G5: Energy 1
A7: Reporting Period from: | D7: =+'Perf. Form 1'!D6:E6 -> 2025-01-01 | F7: to: | G7: =+'Perf. Form 1'!G6:H6 -> 2025-12-31
A9: Energy Source | D9: Energy Usage | F9: Unit | G9: Specific Usage (KWh/tonne incinerated
A10: Electricity Produced | D10: =+'Operational Data'!G18 -> 674464.43 | F10: MWh | G10: =+'Operational Data'!H18 -> 1047.17342
A11: Electricity Imported | D11: =+'Operational Data'!G20 -> 15.18 | F11: MWh | G11: =+'Operational Data'!H20 -> 0.02356846678
A12: Electricity Exported | D12: =+'Operational Data'!G19 -> 614586.73 | F12: MWh | G12: =+'Operational Data'!H19 -> 954.2073075
A13: Gas Oil | D13: 1084.56 | F13: tonnes | G13: =+'Operational Data'!H54 -> 1.683883111
A15: Operator’s comments :
A16: Review of Combined Heat and Power (CHP) options. It is a permit requirement that the viability of CHP implementation is reviewed at least every four years. Information submitted in the annual report for 2022 provides relevant information and there are no updates for 2025.
A21: Signed: | G21: Date:

Sheet Permit Compliance
A1: =+'Cover Page'!$B$29 -> Annual Performance Report 2025 | E1: =+'Cover Page'!$B$33 -> Ferrybridge 2
A3: Summary of Permit Compliance
A5: Compliance with permit limits for continuously monitored pollutants
A7: The plant met its emission limits as shown in the table below:
A8: Substance | C8: Percentage time compliant during operationNote 1 | K8: Notes:
C9: Half-hourly limit | F9: Daily limit | K9: Note 1: Please report to 2 decimal places, i.e. xx.xx% Note 2: Please enter into this table any permit non-compliances that the EA has given a CCS score for. Please also enter any other non-compliances which you have notified to the EA (e.g. ELV exceedances) but which have not yet been assessed by the EA. There is no need to enter any notifications which were subsequently assessed by the EA not to be permit breaches. Note 3: Please enter information here (rather than just referencing the notifications that were sent to the EA) including where relevant the incineration line reference, pollutant and value of the measured result for any ELV exceedances.
A10: Particulates | C10: 1 | F10: 1
A11: Oxides of nitrogen | C11: 1 | F11: 1
A12: Sulphur dioxide | C12: 1 | F12: 1
A13: Carbon monoxide | C13: 100.00% 95% of 10-min averages | F13: 0.9945
A14: Total organic carbon | C14: 1 | F14: 1
A15: Hydrogen chloride | C15: 0.9999 | F15: 0.9973
A17: Summary of non-compliances under the permit Note 2
A18: Date | B18: Summary of non-compliance Note 3 | D18: Reason | G18: Measures taken to prevent reoccurrence | H18: CCS score if applicable*
H19: Impact | I19: Root cause
A20: 2025-09-30 | B20: Exceedance of the HCl 1/2 hourly ELV for two 1/2 periods and exceedance of the HCl daily averge ELV | D20: Under investigation | G20: Under investigation, measures to be decided.
A21: 2025-10-09 | B21: Exceedance of the CO daily average ELV | D21: Furnace explosions due to gas cannisters in fuel increased CO levels which did not reduce sufficiently before end of daily monitoring period | G21: Adjustment of boiler control (DCS) settings, continued waste inspections at site level including investment in advanced camera technology to detect non-compliant waste, continued engagement and dialogue with fuel suppliers on improving their controls on waste supplied to site, continued lobbying of Government through ESA to improve the national problem of gas cylinders in waste.
A22: 2025-11-26 | B22: Exceedance of the CO daily average ELV | D22: Furnace explosions due to gas cannisters in fuel increased CO levels which did not reduce sufficiently before end of daily monitoring period | G22: Adjustment of boiler control (DCS) settings, continued waste inspections at site level including investment in advanced camera technology to detect non-compliant waste, continued engagement and dialogue with fuel suppliers on improving their controls on waste supplied to site, continued lobbying of Government through ESA to improve the national problem of gas cylinders in waste.
A23: *If the Environment Agency (EA) has given a Compliance Classification Scheme (CCS) score due to a permit non-compliance it should be entered here (CCS4 = No impact; CCS3 = Minor impact; CCS2 = Significant impact; CCS1 = Major impact). If the EA has not yet assessed a non-compliance which you have notified to them, these columns should be left blank. Enter N/A if no score was given for the root cause.
A24: Summary of any complaints received and actions to taken to resolve them.
A25: Date | B25: Summary of complaint [including Line/Reference] | E25: Reason (including whether substantiated by the operator or the EA) | H25: Measures taken to prevent reoccurrence
A26: 2025-02-07 | B26: Odour complaint from the EA (NIRS 02356111) | E26: Investigated and found unsubstantiated, report sent to the EA. | H26: Continued compliance with permit conditions
A27: 2025-04-24 | B27: Dust and odour complaints received from the EA (NIRS 02381397 & 02381388) | E27: Investigated and found unsubstantiated, report sent to the EA | H27: Continued compliance with permit conditions
A28: 2025-04-29 | B28: External complaint about RDF wagons queuing on Kirkhaw Lane and roads in the vicinity of Ferrybridge. | E28: Investigated and found unsubstantiated | H28: Continued compliance with permit and planning conditions
A29: 2025-05-22 | B29: External complaint from local resident complaining about a humming noise. | E29: Investigated and found unsubstantiated | H29: Continued compliance with permit conditions
A30: 2025-05-22 | B30: External complaint from a local resident living 5km from site about dust on his cars. | E30: Investigated and found unsubstantiated | H30: Continued compliance with permit conditions
A31: 2025-07-09 | B31: External complaint about RDF wagons queuing on Kirkhaw Lane | E31: Investigated and found to be substantiated. Contact with local resident to advise of actions taken. | H31: Increased monitoring of access road and liaison with fuel suppliers/hauliers
A32: 2025-08-04 | B32: Odour complaint received from the EA (NIRS 02412011) | E32: Investigated and found unsubstantiated, report sent to the EA. | H32: Continued compliance with permit and planning conditions

Sheet Improvements
A1: =+'Cover Page'!$B$29 -> Annual Performance Report 2025 | E1: =+'Cover Page'!$B$33 -> Ferrybridge 2
A3: Summary of Plant Improvements
A5: Summary of any efficiency improvements that have been completed within the year.
A6: Line 2 recirc fan VFD replacement Process water pump 3 replaced Overhaul of Line 2 APCR conveyor Feed pump 2 overhaul Waste grab overhaul Waste crane grab overhaul Full clean and inspection of internal boiler/furnace gas path Full inspection and overhaul of ancillary plant equipment inclusive of Ash, FGT, APCR systems. Combustion fan maintenance strategy continued including inspection and replacement activities Ram feeder hydraulics replaced as part of maintenance strategy Quantum VFD service Site wide compressor major servicing
A16: Summary of any permit improvement conditions that have been completed within the year and the resulting environmental benefits.
A17: None
A22: Summary of any changes to the plant or operating techniques which required a variation to the permit and a summary of the resulting environmental impact.
A23: None
A28: Summary of any other improvements made to the plant or planned to be made and a summary of the resulting environmental benefits.
A29: Climate change risk assessment and adaptation plan created and implemented. This has allowed us to model the risk to site associated with climate change and identified actions to mitigate the risk over time.

Sheet Public Liasion
A1: =+'Cover Page'!$B$29 -> Annual Performance Report 2025 | E1: =+'Cover Page'!$B$33 -> Ferrybridge 2
A3: Details of Public & Stakeholder Liaison
A5: Summary of events held during the reporting year.
A6: Date | C6: Description
A7: 2025-07-22 | C7: Transport Liaison Group meeting
A10: List of events planned for next year
A11: Date | C11: Description
A12: Q1 2026 | C12: Community liaison group meeting
A14: Q3 2026 | C14: Transport liaison group meeting
A17: If you wish to be involved in the public liaison programme, please contact John Warren

Sheet CO2 N2O
A1: =+'Cover Page'!$B$29 -> Annual Performance Report 2025 | C1: =+'Cover Page'!$B$33 -> Ferrybridge 2
A3: Carbon dioxide emissions and biogenic content of waste inputs | F3: Notes:
A5: Carbon dioxide emissions (all types of plant)
A6: Annual mass of carbon dioxide released | C6: tonnes | D6: 800324.57
A7: Annual mass of carbon dioxide released per tonne of waste burned | C7: t CO2 / t waste | D7: 1.24 | F7: Note 1: All permits require operators to continuously monitor CO2 to EN14181 and flow to BS EN 16911-2 (unless otherwise agreed in writing). Operators must therefore use the results from these instruments to calculate their annual CO2 emissions. Where an operator does not have a flow meter calibrated to BS EN 16911-2, the averaged flow measurement from that year's periodic monitoring can be used instead. If the plant does not have calibrated CO2 CEMS, a suitably justified emissions factor can be used.
A8: Annual mass of carbon dioxide released per MWh of energy exported | C8: t CO2 / MWh export | D8: 1.3
A9: Description of how annual carbon dioxide mass emission has been calculated. See Note 1 | C9: CEMS CO2% calculated via Annual mass emissions report and converted into kg
A10: Nitrous oxide emissions (only plants which use ammonia or urea to abate NOx emissions)
A11: Annual mass emissions of nitrous oxide | C11: tonnes N2O | D11: 3.79
A12: Description of how annual nitrous oxide mass emission has been calculated See Note 2 | C12: CEMS data has been used to calculate the mass emissions | F12: Note 2: All permits require operators to continuously monitor N2O to EN14181 and flow to BS EN 16911-2, unless otherwise agreed in writing. Operators must therefore use the results from these instruments to calculate their annual N2O emissions. Where an operator does not have a flow meter calibrated to BS EN 16911-2, the averaged flow measurement from periodic monitoring can be used instead. If the plant does not have calibrated N2O CEMS, data from periodic monitoring or a suitably justified emissions factor can be used instead.
A13: Total annual carbon dioxide + nitrous oxide emissions. See Note 3. | C13: tonnes CO2e | D13: =D6+D11 -> 800328.36 | F13: Note 3: Total annual carbon dioxide and nitrous oxide emissions reported as carbon dioxide equivalent where 1 tonne nitrous oxide is equivalent to 265 tonnes carbon dioxide.
A14: Biogenic CO2 emissions (See Note 4) | F14: Note 4: Only plants combusting residual municipal waste, refuse derived fuel or solid recovered fuel need complete this section.
A15: Percentage of total carbon dioxide emissions arising from biogenic waste | C15: % | D15: 0.5
A16: No. of measurements undertaken | C16: Number | D16: 22
A17: Description of how percentage biogenic carbon dioxide emissions have been measured or calculated. See Note 5 | C17: Biogenic carbon has been measured by using Amesa B monitors. The cartridges have been sent off monthly for analysis of the C14, to give a percentage for each month and each line. The average results for January 25- November 25 has been used (December 2025 results not yet received). | F17: Note 5: The results from C14 sampling should be used if this is carried out at the plant (either via an installed sampler or from spot samples). Otherwise, as an approximation (and in lieu of any more accurate metrics which may be developed in future), the measured or estimated biogenic fraction by net calorific value (see Note 6) can be assumed to be the same as the biogenic CO2 fraction of the total CO2 emissions from the plant.
A19: Biogenic fraction of waste feedstock (See Note 4)
A20: Yearly average biogenic percentage of the waste by net calorific value (NCV) | C20: % | D20: 0.521
A21: Description of how biogenic percentage (by NCV) has been calculated or estimated. See Note 6 | C21: From fuel model which takes weighbridge data and RDF test results sampled at source (calculated from lab analysis via a UKAS accredited method ISO 21644:2021), then weights each suppliers tonnage on a heat input basis. Dataset available for this report is January 2025 to November 2025. | F21: Note 6: If C14 sampling is carried out at the plant, the methodology set out in the embedded document entitled "Renewable Energy Association Energy Content of Fuels - Description of Method" embedded below can be used to calculate the biogenic percentage by net calorific value. Otherwise, data from waste sampling or BIOMA software can be used; or if none of these are available, an estimated figure with justification or a figure assumed on the basis of up-to-date industry data can be used.
A22: Yearly average biogenic percentage of the waste by mass | C22: % | D22: 0.566
A23: If waste sampling undertaken, no. of samples used to ascertain average biogenic percentages above | C23: Number | D23: 2317
A24: Description of how biogenic percentage (by mass) has been calculated or estimated. See Note 7 | C24: From fuel model which takes weighbridge data and RDF test results sampled at source (calculated from lab analysis via a UKAS accredited method ISO 21644:2021), then weights each suppliers tonnage on a heat input basis. Dataset available for this report is January 2025 to November 2025. | F24: Note 7: Where available, data from waste sampling should be used; otherwise, an estimated figure with justification can be used, or a figure assumed on the basis of up-to-date industry data.
B26: Comments:

Sheet Residues
A1: =+'Cover Page'!$B$29 -> Annual Performance Report 2025 | E1: =+'Cover Page'!$B$33 -> Ferrybridge 2
A3: Summary of Residue Handling for the reporting year
A4: Incinerator Bottom Ash (IBA) from Ferrybridge 2 is stored in the Ash Bunker Building and then outloaded by the ash crane grab to receiving dumper trucks. The IBA is collected and taken to the Blue Phoenix Ferrybridge (EPR/QP3034JW) site, which is located immediately to the north of Ferrybridge 2. Movement of the IBA is carried out by dumper truck via a predominantly internal road network to the Blue Phoenix site where it is processed into Incinerator Bottom Ash Aggregate (IBAA). Blue Phoenix remove additional ferrous and non-ferrous metals from the IBA and then sort and size the IBA into different sizes. The resulting IBAA product is sent to construction companies as an aggregate. APCr is collected in silos and then discharged to receiving tanker for off-site disposal. The APCr is transported to OCO Ltd in Leeds (EPR/TP3737YG) and Castle Environmental Ltd in Ilkeston, Derbyshire (EPR/AP3337SJ). OCO recycles 100% of IBA received, Castle Environmental recycles approximately 55% of the APCr received. | I4: Include in here a summary of residue handling regimes and destinations
A10: Residue Quality Monitoring Requirements
A12: Summary of monitoring undertaken and compliance
A13: IBA and APCr is sampled in accordance with the ESA IBA Protocol (January 2018) and enfinium Residue Management Procedure (T2-ENF-ENV). Monthly IBA hazard assessments and annual full hazardous property assessments, quarterly IBA and APC residue compliance monitoring, annual characterisation of IBA and APC residue. Analysis and reporting carried out by WRc.
A16: Commentary on any specific events
A17: Date & Event | C17: Description
A18: October 2024 - IBA and APC Annual Characterisation Report | C18: Results of the annual characterisation of IBA and APC residues from Ferrybridge 2, including a full hazardous property assessment of IBA as required by the ESA Protocol 2018.
A20: 2025-09-01 | C20: IBA assessment (IBA2 sample) showed that the sample was below limits for HP4 (irritant), HP7 (carcinogenic) and HP8 (corrosive), but exceeded the concentration limit for HP14 (ecotoxic) due to elevated concentrations of lead and copper found in aqua regia testing.
A22: 2025-12-01 | C22: IBA assessment (IBA2 sample) showed that the sample was below limits for HP4 (irritant), HP7 (carcinogenic) and HP8 (corrosive), but exceeded the concentration limit for HP14 (ecotoxic) due to elevated concentrations of lead and copper found in aqua regia testing.
A26: Residue Quality Monitoring Results
A27: Parameter (unit) | C27: Limit* | D27: Normal Operation
D28: Bottom ash | F28: APC Residues
A29: Loss on Ignition (average %) | C29: <5% | D29: 1.21
A30: Total Organic Carbon (average %) | C30: <3% | D30: 0.36
A31: No. of Assessments Undertaken | C31: --- | D31: 24 | F31: 4
A32: No. of Hazardous Results | C32: --- | D32: 2
A33: * The permit will specify a limit of either 5% loss on ignition or 3% total organic carbon. If both are measured anyway, please enter the results here, even where the limit does not apply.
A35: Comments :

Sheet Water
A1: =+'Cover Page'!$B$29 -> Annual Performance Report 2025 | E1: =+'Cover Page'!$B$33 -> Ferrybridge 2
A3: Emissions to Water
A5: Summary of monitoring undertaken and compliance
A6: Frequent sampling and analysis of attenuation pond water, tested for pH and conductivity, odour and appearance prior to discharge to Fryston Beck. Elevated conductivity during warm summer months due to evaporation and lack of freshwater influx. Discharges tfrom pond to watercourse were not permitted during this time.
A9: Commentary on any specific events
A10: Date & Event | C10: Description
A11: N/A | C11: N/A
A14: Emissions to Water / Sewer
A15: Parameter | D15: Monitoring Frequency | F15: Limit | G15: Target | H15: Max. | I15: Average
A16: No parameters set in permit | D16: None | F16: None | G16: None | H16: None | I16: None

Sheet Air (periodic)
A1: =+'Cover Page'!$B$29 -> Annual Performance Report 2025 | E1: =+'Cover Page'!$B$33 -> Ferrybridge 2
A3: Emissions to Air (periodically monitored)
A5: Summary of monitoring undertaken, standards used and compliance | H5: Notes:
A6: Bi-annual monitoring undertaken in January 2025 (Lines A1 and A2), September 2025 (Line A1) and November 2025 (Line A2). Standards used include EN 14385, MID 14385, EN 1948, ISO 11338, ISO 15713, EN 14789, TGN M22 and EN 16911-1 (MID). H1 and H2 test results demonstrated full compliance with emission limit values. | H6: Template may require adjustment for any bespoke monitoring requirements of permit - please also check that all default ELV values, reference periods and the stated oxygen reference value match those for your plant, and edit if necessary!
A9: Results of emissions to air that are periodically monitored - oxygen reference 11%
A10: Substance | C10: Ref. Period | D10: Emission Limit Value | F10: Average | H10: User to add additional tables as necessary, depending on whether quarterly or bi-annual reporting is required for the compliance year
F11: A1 | G11: A2
A12: Hydrogen fluoride | C12: 1 hr | D12: 1 mg/m3 | F12: < 0.047 | G12: < 0.047
A13: Cd and Tl and their compounds | C13: 0.5-8hrs | D13: 0.02 mg/m3 | F13: 0.00096 | G13: 0.0012
A14: Hg and its compounds | C14: 0.5-8hrs | D14: 0.02 mg/m3 | F14: 0.0026 | G14: 0.0019
A15: Sb, As, Pb, Cr, Co, Cu, Mn, Ni, V and their compounds | C15: 0.5-8hrs | D15: 0.3 mg/m3 | F15: 0.028 | G15: 0.047
A16: Dioxins & Furans (I-TEQ) | C16: 6-8hrs | D16: 0.06 ng/m3 | F16: 0.0074 | G16: 0.011
A17: PCBs (WHO-TEQ Humans / Mammals) | C17: 6-8hrs | D17: None set ng/m3 | F17: 0.00064 | G17: 0.00052
A18: PCBs (WHO-TEQ Fish) | C18: 6-8hrs | D18: None set ng/m3 | F18: 3.1e-05 | G18: 2.6e-05
A19: PCBs (WHO-TEQ Birds) | C19: 6-8hrs | D19: None set ng/m3 | F19: 0.0014 | G19: 0.0014
A20: Dioxins & Furans (WHO-TEQ Humans / Mammals) | C20: 6-8hrs | D20: None set ng/m3 | F20: 0.0068 | G20: 0.01
A21: Dioxins & Furans (WHO-TEQ Fish) | C21: 6-8hrs | D21: None set ng/m3 | F21: 0.0077 | G21: 0.011
A22: Dioxins & Furans (WHO-TEQ Birds) | C22: 6-8hrs | D22: None set ng/m3 | F22: 0.016 | G22: 0.026
A23: Anthanthrene | C23: 6-8hrs | D23: None set µg/m3 | F23: < 0.0015 | G23: < 0.0018
A24: Benzo(a)anthracene | C24: 6-8hrs | D24: None set µg/m3 | F24: < 0.0015 | G24: < 0.0018
A25: Benzo(a)pyrene | C25: 6-8hrs | D25: None set µg/m3 | F25: < 0.0015 | G25: < 0.0018
A26: Benzo(b)fluoranthene | C26: 6-8hrs | D26: None set µg/m3 | F26: < 0.0015 | G26: < 0.0018
A27: Benzo(b)naptho(2,1-d) thiophene | C27: 6-8hrs | D27: None set µg/m3 | F27: < 0.0015 | G27: < 0.0018
A28: Benzo(c)phenanthrene | C28: 6-8hrs | D28: None set µg/m3 | F28: < 0.0015 | G28: < 0.0018
A29: Benzo(ghi)perylene | C29: 6-8hrs | D29: None set µg/m3 | F29: < 0.0015 | G29: < 0.0018
A30: Benzo(k)fluoranthene | C30: 6-8hrs | D30: None set µg/m3 | F30: < 0.0015 | G30: < 0.0018
A31: Cholanthrene | C31: 6-8hrs | D31: None set µg/m3 | F31: < 0.0015 | G31: < 0.0018
A32: Chrysene | C32: 6-8hrs | D32: None set µg/m3 | F32: < 0.0015 | G32: < 0.0018
A33: Cyclopenta(cd)pyrene | C33: 6-8hrs | D33: None set µg/m3 | F33: < 0.0015 | G33: < 0.0018
A34: Dibenzo(ai)pyrene | C34: 6-8hrs | D34: None set µg/m3 | F34: < 0.0015 | G34: < 0.0018
A35: Dibenzo(ah)anthracene | C35: 6-8hrs | D35: None set µg/m3 | F35: < 0.0015 | G35: < 0.0018
A36: Fluoranthene | C36: 6-8hrs | D36: None set µg/m3 | F36: 0.026 | G36: 0.018
A37: Indeno(123-cd) pyrene | C37: 6-8hrs | D37: None set µg/m3 | F37: < 0.0015 | G37: < 0.0018
A38: Naphthalene | C38: 6-8hrs | D38: None set µg/m3 | F38: 0.064 | G38: 0.12
A39: Comments :
A44: Results of emissions to air that are periodically monitored - oxygen reference 11%
A45: Substance | C45: Ref. Period | D45: Emission Limit Value | F45: Average
F46: A1 | G46: A2
A47: Hydrogen fluoride | C47: 1 hr | D47: 1 mg/m3 | F47: <0.055 | G47: < 0.046
A48: Cd and Tl and their compounds | C48: 0.5-8hrs | D48: 0.02 mg/m3 | F48: 0.0021 | G48: < 0.0021
A49: Hg and its compounds | C49: 0.5-8hrs | D49: 0.02 mg/m3 | F49: 0.0034 | G49: 0.0029
A50: Sb, As, Pb, Cr, Co, Cu, Mn, Ni, V and their compounds | C50: 0.5-8hrs | D50: 0.3 mg/m3 | F50: 0.043 | G50: 0.024
A51: Dioxins & Furans (I-TEQ) | C51: 6-8hrs | D51: 0.06 ng/m3 | F51: 0.018 | G51: 0.0091
A52: PCBs (WHO-TEQ Humans / Mammals) | C52: 6-8hrs | D52: None set ng/m3 | F52: 0.0011 | G52: 0.00085
A53: PCBs (WHO-TEQ Fish) | C53: 6-8hrs | D53: None set ng/m3 | F53: 5.7e-05 | G53: 4.1e-05
A54: PCBs (WHO-TEQ Birds) | C54: 6-8hrs | D54: None set ng/m3 | F54: 0.0028 | G54: 0.0017
A55: Dioxins & Furans (WHO-TEQ Humans / Mammals) | C55: 6-8hrs | D55: None set ng/m3 | F55: 0.017 | G55: 0.0081
A56: Dioxins & Furans (WHO-TEQ Fish) | C56: 6-8hrs | D56: None set ng/m3 | F56: 0.02 | G56: 0.0091
A57: Dioxins & Furans (WHO-TEQ Birds) | C57: 6-8hrs | D57: None set ng/m3 | F57: 0.034 | G57: 0.016
A58: Comments :

Sheet Air (CEMS)
A1: =+'Cover Page'!$B$29 -> Annual Performance Report 2025
A3: Emissions to Air (continuously monitored)
H4: Notes:
A5: Summary of monitoring undertaken, standards used and compliance | H5: Template may require adjustment for any bespoke monitoring requirements of permit
A6: Continuous emissions monitoring of Oxides of Nitrogen, Sulphur Dioxide, Hydrogen Chloride, Total Organic Carbon, Particulates, Ammonia and Carbon Monoxide (also Flow, O2, N2O) to EN14181. Instruments used PCME QAL 181, Environement SA MIR FT multigas analyser and Graphite 52M Flame Ionisation Detector (FID). All results demonstrate 100% compliance with the daily emission limit values (except CO due to invalid day on Line A1 and CO due to furnace explosions on Line A2). All results (except particulates due to abnormal operations conditions) demonstrate 100% compliance with 1/2 hour average emission limit values. | H6: Please check that all default ELV values match those for your plant and edit if necessary!
H7: Report to 1 decimal place
A9: Results of emissions to air that are continuously monitored (maximum and average values for each line) - oxygen reference 11%
A10: Substance | B10: Reference Period | C10: Emission Limit Value | D10: A1 | F10: A2
D11: Max. | E11: Avg. | F11: Max. | G11: Avg.
A12: Oxides of nitrogen | B12: Daily mean | C12: 180 mg/m3 | D12: =NOx!O17 -> 174.32 | E12: =NOx!N17 -> 169.44 | F12: =NOx!O31 -> 175 | G12: =NOx!N31 -> 168.05
B13: ½ hourly mean | C13: 400 mg/m3 | D13: =NOx!M17 -> 200 | E13: =NOx!L17 -> 169 | F13: =NOx!M31 -> 211 | G13: =NOx!L31 -> 168
A14: Particulates | B14: Daily mean | C14: 5 mg/m3 | D14: =Particulates!O17 -> 8.83 | E14: =Particulates!N17 -> 1.12 | F14: =Particulates!O31 -> 2.67 | G14: =Particulates!N31 -> 0.96
B15: ½ hourly mean | C15: 30 mg/m3 | D15: =Particulates!M17 -> 53 | E15: =Particulates!L17 -> 1 | F15: =Particulates!M31 -> 6 | G15: =Particulates!L31 -> 1
A16: Total Organic Carbon | B16: Daily mean | C16: 10 mg/m3 | D16: =TOC!O17 -> 0.14 | E16: =TOC!N17 -> 0.06 | F16: =TOC!O31 -> 0.75 | G16: =TOC!N31 -> 0.37
B17: ½ hourly mean | C17: 20 mg/m3 | D17: =TOC!M17 -> 2 | E17: =TOC!L17 -> 0 | F17: =TOC!M31 -> 16 | G17: =TOC!L31 -> 0
A18: Hydrogen chloride | B18: Daily mean | C18: 8 mg/m3 | D18: =HCl!O17 -> 6.73 | E18: =HCl!N17 -> 5.57 | F18: =HCl!O31 -> 7.79 | G18: =HCl!N31 -> 5.81
B19: ½ hourly mean | C19: 60 mg/m3 | D19: =HCl!M17 -> 10 | E19: =HCl!L17 -> 6 | F19: =HCl!M31 -> 18 | G19: =HCl!L31 -> 6
A20: Sulphur dioxide | B20: Daily mean | C20: 40 mg/m3 | D20: ='SO2'!O17 -> 1.31 | E20: ='SO2'!N17 -> 0.19 | F20: ='SO2'!O31 -> 5.34 | G20: ='SO2'!N31 -> 2.39
B21: ½ hourly mean | C21: 200 mg/m3 | D21: ='SO2'!M17 -> 9 | E21: ='SO2'!L17 -> 0 | F21: ='SO2'!M31 -> 23 | G21: ='SO2'!L31 -> 2
A22: Carbon monoxide | B22: Daily mean | C22: 50 mg/m3 | D22: ='CO 95% 10 min'!Q20 -> 94.7 | E22: ='CO 95% 10 min'!P20 -> 2.906666667 | F22: ='CO 95% 10 min'!Q35 -> 68.43 | G22: ='CO 95% 10 min'!P35 -> 6.315
B23: 95%ile 10-min avg | C23: 150 mg/m3 | D23: ='CO 95% 10 min'!M20 -> 14.58333333 | E23: ='CO 95% 10 min'!N20 -> 2.583333333 | F23: ='CO 95% 10 min'!M35 -> 43.91666667 | G23: ='CO 95% 10 min'!N35 -> 6.5
A24: Ammonia | B24: Daily mean | C24: 15 mg/m3 | D24: ='NH3'!O17 -> 0.12 | E24: ='NH3'!N17 -> 0 | F24: ='NH3'!O31 -> 0.37 | G24: ='NH3'!N31 -> 0.09
A25: Comments :

Sheet NOx
A1: =+'Cover Page'!$B$29 -> Annual Performance Report 2025 | E1: =+'Cover Page'!$B$33 -> Ferrybridge 2
A3: Monitoring of Oxides of Nitrogen emissions | D3: Whole Installation | G3: See Notes in Cell Q3 | J3: =+A3 -> Monitoring of Oxides of Nitrogen emissions | N3: Per Combustion Line | Q3: Notes:
Q4: User to add logic to complete Whole installation, Table A5:G18. From the data in Per Combustion Line, Table J6:O79, subject to No. of lines installed
A5: =+'Cover Page'!C39 -> 2025 | B5: 1/2 Hourly Reference Periods | E5: Daily Reference Periods
A6: mg/Nm3 | B6: 1/2 hourly NOx ELV | C6: Monthly mean of half-hourly averages | D6: Highest half- hourly average | E6: Daily NOx ELV | F6: Monthly mean of daily averages | G6: Highest daily average | J6: =+A5 -> 2025 | K6: mg/Nm3 | L6: Monthly mean of half-hourly averages | M6: Highest half- hourly average | N6: Monthly mean of daily averages | O6: Highest daily average
A7: Jan | B7: 400 | C7: =AVERAGE(L7, L22) -> 166 | D7: =MAX(M7, M22) -> 207 | E7: 180 | F7: =AVERAGE(N7, N22) -> 165.91 | G7: =MAX(O7, O22) -> 174.92 | J7: A1 | K7: Jan | L7: 165 | M7: 207 | N7: 164.6 | O7: 170.53
A8: Feb | B8: 400 | C8: =AVERAGE(L8, L23) -> 168.5 | D8: =MAX(M8, M23) -> 210 | E8: 180 | F8: =AVERAGE(N8, N23) -> 168.315 | G8: =MAX(O8, O23) -> 178.13 | K8: Feb | L8: 166 | M8: 190 | N8: 166.09 | O8: 172.55
A9: Mar | B9: 400 | C9: =AVERAGE(L9, L24) -> 170.5 | D9: 202 | E9: 180 | F9: 170.31 | G9: 174.96 | K9: Mar | L9: 169 | M9: 200 | N9: 168.67 | O9: 173.06 | Q9: Whole Installation table A5:G18:
A10: Apr | B10: 400 | C10: =AVERAGE(L10, L25) -> 170.5 | D10: 211 | E10: 180 | F10: 170.625 | G10: 175.58 | K10: Apr | L10: 167 | M10: 192 | N10: 166.99 | O10: 170.78 | Q10: Mean: for 1/2 hourly and daily periods calculate mean of values across all operational combustion lines for the month
A11: May | B11: 400 | C11: 172 | D11: 281 | E11: 180 | F11: 171.955 | G11: 178.34 | K11: May | L11: 169 | M11: 281 | N11: 168.67 | O11: 176.82
A12: Jun | B12: 400 | C12: 171.5 | D12: 207 | E12: 180 | F12: 171.285 | G12: 175.58 | K12: Jun | L12: 169 | M12: 199 | N12: 168.99 | O12: 171.52
A13: Jul | B13: 400 | C13: 169 | D13: 217 | E13: 180 | F13: 169.105 | G13: 175.75 | K13: Jul | L13: 169 | M13: 194 | N13: 168.98 | O13: 172.37 | Q13: Maximum: for 1/2 hourly and daily periods use the highest value across all operational combustion lines for the month
A14: Aug | B14: 400 | C14: 168 | D14: 211 | E14: 180 | F14: 168.17 | G14: 173.6 | K14: Aug | L14: 169 | M14: 202 | N14: 168.84 | O14: 173.6
A15: Sep | B15: 400 | C15: 167.5 | D15: 211 | E15: 180 | F15: 167.525 | G15: 175.06 | K15: Sep | L15: 172 | M15: 211 | N15: 171.74 | O15: 175.06
A16: Oct | B16: 400 | C16: 168 | D16: 211 | E16: 180 | F16: 168.07 | G16: 175 | K16: Oct | L16: 168 | M16: 209 | N16: 168.09 | O16: 171.98
A17: Nov | B17: 400 | C17: 170.5 | D17: 221 | E17: 180 | F17: 170.74 | G17: 175.81 | K17: Nov | L17: 169 | M17: 200 | N17: 169.44 | O17: 174.32
A18: Dec | B18: 400 | C18: 168 | D18: 198 | E18: 180 | F18: 168.06 | G18: 175.51 | K18: Dec | L18: 170 | M18: 196 | N18: 170.45 | O18: 175.12
K19: Annual | L19: =AVERAGE(L7:L18) -> 168.5 | M19: =MAX(M7:M18) -> 281 | N19: =AVERAGE(N7:N18) -> 168.4625 | O19: =MAX(O7:O18) -> 176.82
J21: =+A5 -> 2025 | K21: mg/Nm3 | L21: Monthly mean of half-hourly averages | M21: Highest half- hourly average | N21: Monthly mean of daily averages | O21: Highest daily average
J22: A2 | K22: Jan | L22: 167 | M22: 204 | N22: 167.22 | O22: 174.92
K23: Feb | L23: 171 | M23: 210 | N23: 170.54 | O23: 178.13
K24: Mar | L24: 172 | M24: 202 | N24: 171.95 | O24: 174.96
K25: Apr | L25: 174 | M25: 211 | N25: 174.26 | O25: 175.58
K26: May | L26: 175 | M26: 211 | N26: 175.24 | O26: 178.34
K27: Jun | L27: 174 | M27: 207 | N27: 173.58 | O27: 175.58
K28: Jul | L28: 169 | M28: 217 | N28: 169.23 | O28: 175.75
K29: Aug | L29: 167 | M29: 211 | N29: 167.5 | O29: 173.34
K30: Sep | L30: 163 | M30: 200 | N30: 163.31 | O30: 173.31
K31: Oct | L31: 168 | M31: 211 | N31: 168.05 | O31: 175
K32: Nov | L32: 172 | M32: 221 | N32: 172.04 | O32: 175.81
K33: Dec | L33: 166 | M33: 198 | N33: 165.67 | O33: 175.51
K34: Annual | L34: =AVERAGE(L22:L33) -> 169.8333333 | M34: =MAX(M22:M33) -> 221 | N34: =AVERAGE(N22:N33) -> 169.8825 | O34: =MAX(O22:O33) -> 178.34
A48: Comments :

Sheet SO2
A1: =+'Cover Page'!$B$29 -> Annual Performance Report 2025 | E1: =+'Cover Page'!$B$33 -> Ferrybridge 2
A3: Monitoring of Sulphur dioxide emissions | D3: Whole Installation | G3: See Notes in Cell Q3 | J3: =+A3 -> Monitoring of Sulphur dioxide emissions | N3: Per Combustion Line | Q3: Notes:
Q4: User to add logic to complete Whole installation, Table A5:G18. From the data in Per Combustion Line, Table J6:O79, subject to No. of lines installed
A5: =+'Cover Page'!C39 -> 2025 | B5: 1/2 Hourly Reference Periods | E5: Daily Reference Periods
A6: mg/Nm3 | B6: 1/2 hourly SO2 ELV | C6: Monthly mean of half-hourly averages | D6: Highest half- hourly average | E6: Daily SO2 ELV | F6: Monthly mean of daily averages | G6: Highest daily average | J6: =+A5 -> 2025 | K6: mg/Nm3 | L6: Monthly mean of half-hourly averages | M6: Highest half- hourly average | N6: Monthly mean of daily averages | O6: Highest daily average
A7: Jan | B7: 200 | C7: =AVERAGE(L7, L22) -> 0.5 | D7: =MAX(M7, M22) -> 11 | E7: 40 | F7: =AVERAGE(N7, N22) -> 0.36 | G7: =MAX(O7, O22) -> 1.56 | J7: A1 | K7: Jan | L7: 1 | M7: 11 | N7: 0.67 | O7: 1.56
A8: Feb | B8: 200 | C8: =AVERAGE(L8, L23) -> 0 | D8: =MAX(M8, M23) -> 17 | E8: 40 | F8: =AVERAGE(N8, N23) -> 0.185 | G8: =MAX(O8, O23) -> 0.66 | K8: Feb | L8: 0 | M8: 14 | N8: 0.29 | O8: 0.66
A9: Mar | B9: 200 | C9: 0 | D9: 19 | E9: 40 | F9: 0.115 | G9: 0.43 | K9: Mar | L9: 0 | M9: 11 | N9: 0.17 | O9: 0.43 | Q9: Whole Installation table A5:G18:
A10: Apr | B10: 200 | C10: 0 | D10: 22 | E10: 40 | F10: 0.05 | G10: 0.51 | K10: Apr | L10: 0 | M10: 5 | N10: 0.03 | O10: 0.14 | Q10: Mean: for 1/2 hourly and daily periods calculate mean of values across all operational combustion lines for the month
A11: May | B11: 200 | C11: 0 | D11: 37 | E11: 40 | F11: 0.1 | G11: 1 | K11: May | L11: 0 | M11: 37 | N11: 0.11 | O11: 1
A12: Jun | B12: 200 | C12: 0 | D12: 14 | E12: 40 | F12: 0.165 | G12: 2.08 | K12: Jun | L12: 0 | M12: 8 | N12: 0.11 | O12: 0.51
A13: Jul | B13: 200 | C13: 0 | D13: 7 | E13: 40 | F13: 0.19 | G13: 1.5 | K13: Jul | L13: 0 | M13: 5 | N13: 0.17 | O13: 0.62 | Q13: Maximum: for 1/2 hourly and daily periods use the highest value across all operational combustion lines for the month
A14: Aug | B14: 200 | C14: 0 | D14: 23 | E14: 40 | F14: 0.295 | G14: 2.82 | K14: Aug | L14: 0 | M14: 23 | N14: 0.2 | O14: 0.68
A15: Sep | B15: 200 | C15: 0.5 | D15: 74 | E15: 40 | F15: 0.875 | G15: 3.88 | K15: Sep | L15: 0 | M15: 74 | N15: 0.39 | O15: 2.23
A16: Oct | B16: 200 | C16: 1 | D16: 23 | E16: 40 | F16: 1.36 | G16: 5.34 | K16: Oct | L16: 0 | M16: 2 | N16: 0.33 | O16: 0.93
A17: Nov | B17: 200 | C17: 1 | D17: 19 | E17: 40 | F17: 1.245 | G17: 5.07 | K17: Nov | L17: 0 | M17: 9 | N17: 0.19 | O17: 1.31
A18: Dec | B18: 200 | C18: 0.5 | D18: 16 | E18: 40 | F18: 0.65 | G18: 2.12 | K18: Dec | L18: 0 | M18: 10 | N18: 0.1 | O18: 0.49
K19: Annual | L19: =AVERAGE(L7:L18) -> 0.08333333333 | M19: =MAX(M7:M18) -> 74 | N19: =AVERAGE(N7:N18) -> 0.23 | O19: =MAX(O7:O18) -> 2.23
J21: =+A5 -> 2025 | K21: mg/Nm3 | L21: Monthly mean of half-hourly averages | M21: Highest half- hourly average | N21: Monthly mean of daily averages | O21: Highest daily average
J22: A2 | K22: Jan | L22: 0 | M22: 11 | N22: 0.05 | O22: 0.52
K23: Feb | L23: 0 | M23: 17 | N23: 0.08 | O23: 0.64
K24: Mar | L24: 0 | M24: 19 | N24: 0.06 | O24: 0.4
K25: Apr | L25: 0 | M25: 22 | N25: 0.07 | O25: 0.51
K26: May | L26: 0 | M26: 30 | N26: 0.09 | O26: 0.72
K27: Jun | L27: 0 | M27: 14 | N27: 0.22 | O27: 2.08
K28: Jul | L28: 0 | M28: 7 | N28: 0.21 | O28: 1.5
K29: Aug | L29: 0 | M29: 20 | N29: 0.39 | O29: 2.82
K30: Sep | L30: 1 | M30: 30 | N30: 1.36 | O30: 3.88
K31: Oct | L31: 2 | M31: 23 | N31: 2.39 | O31: 5.34
K32: Nov | L32: 2 | M32: 19 | N32: 2.3 | O32: 5.07
K33: Dec | L33: 1 | M33: 16 | N33: 1.2 | O33: 2.12
K34: Annual | L34: =AVERAGE(L22:L33) -> 0.5 | M34: =MAX(M22:M33) -> 30 | N34: =AVERAGE(N22:N33) -> 0.7016666667 | O34: =MAX(O22:O33) -> 5.34
A48: Comments :

Sheet HCl
A1: =+'Cover Page'!$B$29 -> Annual Performance Report 2025 | E1: =+'Cover Page'!$B$33 -> Ferrybridge 2
A3: Monitoring of Hydrogen Chloride emissions | D3: Whole Installation | G3: See Notes in Cell Q3 | J3: =+A3 -> Monitoring of Hydrogen Chloride emissions | N3: Per Combustion Line | Q3: Notes:
Q4: User to add logic to complete Whole installation, Table A5:G18. From the data in Per Combustion Line, Table J6:O79, subject to No. of lines installed
A5: =+'Cover Page'!C39 -> 2025 | B5: 1/2 Hourly Reference Periods | E5: Daily Reference Periods
A6: mg/Nm3 | B6: 1/2 hourly HCl ELV | C6: Monthly mean of half-hourly averages | D6: Highest half- hourly average | E6: Daily HCl ELV | F6: Monthly mean of daily averages | G6: Highest daily average | J6: =+A5 -> 2025 | K6: mg/Nm3 | L6: Monthly mean of half-hourly averages | M6: Highest half- hourly average | N6: Monthly mean of daily averages | O6: Highest daily average
A7: Jan | B7: 60 | C7: =AVERAGE(L7, L22) -> 6 | D7: =MAX(M7, M22) -> 14 | E7: 8 | F7: =AVERAGE(N7, N22) -> 6.175 | G7: =MAX(O7, O22) -> 7.51 | J7: A1 | K7: Jan | L7: 6 | M7: 14 | N7: 5.89 | O7: 7.01
A8: Feb | B8: 60 | C8: =AVERAGE(L8, L23) -> 7 | D8: =MAX(M8, M23) -> 14 | E8: 8 | F8: =AVERAGE(N8, N23) -> 6.82 | G8: =MAX(O8, O23) -> 7.64 | K8: Feb | L8: 7 | M8: 13 | N8: 6.65 | O8: 7.28
A9: Mar | B9: 60 | C9: 6.5 | D9: 12 | E9: 8 | F9: 6.39 | G9: 7.53 | K9: Mar | L9: 6 | M9: 11 | N9: 6.12 | O9: 7.39 | Q9: Whole Installation table A5:G18:
A10: Apr | B10: 60 | C10: 6.5 | D10: 12 | E10: 8 | F10: 6.115 | G10: 7.43 | K10: Apr | L10: 6 | M10: 9 | N10: 5.52 | O10: 6.23 | Q10: Mean: for 1/2 hourly and daily periods calculate mean of values across all operational combustion lines for the month
A11: May | B11: 60 | C11: 6 | D11: 24 | E11: 8 | F11: 6.21 | G11: 7.67 | K11: May | L11: 5 | M11: 24 | N11: 5.29 | O11: 6
A12: Jun | B12: 60 | C12: 6 | D12: 12 | E12: 8 | F12: 5.925 | G12: 7.6 | K12: Jun | L12: 6 | M12: 11 | N12: 5.54 | O12: 7.39
A13: Jul | B13: 60 | C13: 6 | D13: 11 | E13: 8 | F13: 5.74 | G13: 7.55 | K13: Jul | L13: 6 | M13: 10 | N13: 5.82 | O13: 7.55 | Q13: Maximum: for 1/2 hourly and daily periods use the highest value across all operational combustion lines for the month
A14: Aug | B14: 60 | C14: 6 | D14: 17 | E14: 8 | F14: 5.8 | G14: 7.41 | K14: Aug | L14: 6 | M14: 17 | N14: 5.64 | O14: 6.37
A15: Sep | B15: 60 | C15: 7 | D15: 72 | E15: 8 | F15: 6.635 | G15: 9.63 | K15: Sep | L15: 7 | M15: 72 | N15: 6.65 | O15: 9.63
A16: Oct | B16: 60 | C16: 6 | D16: 18 | E16: 8 | F16: 5.84 | G16: 7.79 | K16: Oct | L16: 6 | M16: 10 | N16: 5.87 | O16: 7.59
A17: Nov | B17: 60 | C17: 6 | D17: 12 | E17: 8 | F17: 5.595 | G17: 7.14 | K17: Nov | L17: 6 | M17: 10 | N17: 5.57 | O17: 6.73
A18: Dec | B18: 60 | C18: 6 | D18: 11 | E18: 8 | F18: 5.83 | G18: 7.33 | K18: Dec | L18: 6 | M18: 10 | N18: 6.02 | O18: 7.1
K19: Annual | L19: =AVERAGE(L7:L18) -> 6.083333333 | M19: =MAX(M7:M18) -> 72 | N19: =AVERAGE(N7:N18) -> 5.881666667 | O19: =MAX(O7:O18) -> 9.63
J21: =+A5 -> 2025 | K21: mg/Nm3 | L21: Monthly mean of half-hourly averages | M21: Highest half- hourly average | N21: Monthly mean of daily averages | O21: Highest daily average
J22: A2 | K22: Jan | L22: 6 | M22: 12 | N22: 6.46 | O22: 7.51
K23: Feb | L23: 7 | M23: 14 | N23: 6.99 | O23: 7.64
K24: Mar | L24: 7 | M24: 12 | N24: 6.66 | O24: 7.53
K25: Apr | L25: 7 | M25: 12 | N25: 6.71 | O25: 7.43
K26: May | L26: 7 | M26: 20 | N26: 7.13 | O26: 7.67
K27: Jun | L27: 6 | M27: 12 | N27: 6.31 | O27: 7.6
K28: Jul | L28: 6 | M28: 11 | N28: 5.66 | O28: 7.23
K29: Aug | L29: 6 | M29: 15 | N29: 5.96 | O29: 7.41
K30: Sep | L30: 7 | M30: 28 | N30: 6.62 | O30: 9.11
K31: Oct | L31: 6 | M31: 18 | N31: 5.81 | O31: 7.79
K32: Nov | L32: 6 | M32: 12 | N32: 5.62 | O32: 7.14
K33: Dec | L33: 6 | M33: 11 | N33: 5.64 | O33: 7.33
K34: Annual | L34: =AVERAGE(L22:L33) -> 6.416666667 | M34: =MAX(M22:M33) -> 28 | N34: =AVERAGE(N22:N33) -> 6.2975 | O34: =MAX(O22:O33) -> 9.11
A48: Comments :

Sheet TOC
A1: =+'Cover Page'!$B$29 -> Annual Performance Report 2025 | E1: =+'Cover Page'!$B$33 -> Ferrybridge 2
A3: Monitoring of Total organic carbon emissions | D3: Whole Installation | G3: See Notes in Cell Q3 | J3: =+A3 -> Monitoring of Total organic carbon emissions | N3: Per Combustion Line | Q3: Notes:
Q4: User to add logic to complete Whole installation, Table A5:G18. From the data in Per Combustion Line, Table J6:O79, subject to No. of lines installed
A5: =+'Cover Page'!C39 -> 2025 | B5: 1/2 Hourly Reference Periods | E5: Daily Reference Periods
A6: mg/Nm3 | B6: 1/2 hourly TOC ELV | C6: Monthly mean of half-hourly averages | D6: Highest half- hourly average | E6: Daily TOC ELV | F6: Monthly mean of daily averages | G6: Highest daily average | J6: =+A5 -> 2025 | K6: mg/Nm3 | L6: Monthly mean of half-hourly averages | M6: Highest half- hourly average | N6: Monthly mean of daily averages | O6: Highest daily average
A7: Jan | B7: 20 | C7: =AVERAGE(L7, L22) -> 0 | D7: =MAX(M7, M22) -> 8 | E7: 10 | F7: =AVERAGE(N7, N22) -> 0.065 | G7: =MAX(O7, O22) -> 0.24 | J7: A1 | K7: Jan | L7: 0 | M7: 3 | N7: 0.05 | O7: 0.24
A8: Feb | B8: 20 | C8: =AVERAGE(L8, L23) -> 0 | D8: =MAX(M8, M23) -> 6 | E8: 10 | F8: =AVERAGE(N8, N23) -> 0.1 | G8: =MAX(O8, O23) -> 0.26 | K8: Feb | L8: 0 | M8: 2 | N8: 0.13 | O8: 0.26
A9: Mar | B9: 20 | C9: 0 | D9: 4 | E9: 10 | F9: 0.13 | G9: 0.35 | K9: Mar | L9: 0 | M9: 2 | N9: 0.12 | O9: 0.23 | Q9: Whole Installation table A5:G18:
A10: Apr | B10: 20 | C10: 0 | D10: 3 | E10: 10 | F10: 0.11 | G10: 0.39 | K10: Apr | L10: 0 | M10: 2 | N10: 0.02 | O10: 0.09 | Q10: Mean: for 1/2 hourly and daily periods calculate mean of values across all operational combustion lines for the month
A11: May | B11: 20 | C11: 0 | D11: 9 | E11: 10 | F11: 0.125 | G11: 0.55 | K11: May | L11: 0 | M11: 9 | N11: 0.05 | O11: 0.55
A12: Jun | B12: 20 | C12: 0 | D12: 12 | E12: 10 | F12: 0.225 | G12: 1.82 | K12: Jun | L12: 0 | M12: 3 | N12: 0.13 | O12: 1.82
A13: Jul | B13: 20 | C13: 0.5 | D13: 10 | E13: 10 | F13: 0.28 | G13: 0.62 | K13: Jul | L13: 0 | M13: 3 | N13: 0.05 | O13: 0.17 | Q13: Maximum: for 1/2 hourly and daily periods use the highest value across all operational combustion lines for the month
A14: Aug | B14: 20 | C14: 0 | D14: 5 | E14: 10 | F14: 0.28 | G14: 0.68 | K14: Aug | L14: 0 | M14: 3 | N14: 0.09 | O14: 0.55
A15: Sep | B15: 20 | C15: 0 | D15: 10 | E15: 10 | F15: 0.215 | G15: 0.55 | K15: Sep | L15: 0 | M15: 3 | N15: 0.04 | O15: 0.29
A16: Oct | B16: 20 | C16: 0 | D16: 16 | E16: 10 | F16: 0.225 | G16: 0.75 | K16: Oct | L16: 0 | M16: 2 | N16: 0.08 | O16: 0.55
A17: Nov | B17: 20 | C17: 0 | D17: 12 | E17: 10 | F17: 0.18 | G17: 0.68 | K17: Nov | L17: 0 | M17: 2 | N17: 0.06 | O17: 0.14
A18: Dec | B18: 20 | C18: 0 | D18: 11 | E18: 10 | F18: 0.185 | G18: 0.55 | K18: Dec | L18: 0 | M18: 3 | N18: 0.07 | O18: 0.27
K19: Annual | L19: =AVERAGE(L7:L18) -> 0 | M19: =MAX(M7:M18) -> 9 | N19: =AVERAGE(N7:N18) -> 0.07416666667 | O19: =MAX(O7:O18) -> 1.82
J21: =+A5 -> 2025 | K21: mg/Nm3 | L21: Monthly mean of half-hourly averages | M21: Highest half- hourly average | N21: Monthly mean of daily averages | O21: Highest daily average
J22: A2 | K22: Jan | L22: 0 | M22: 8 | N22: 0.08 | O22: 0.22
K23: Feb | L23: 0 | M23: 6 | N23: 0.07 | O23: 0.19
K24: Mar | L24: 0 | M24: 4 | N24: 0.14 | O24: 0.35
K25: Apr | L25: 0 | M25: 3 | N25: 0.2 | O25: 0.39
K26: May | L26: 0 | M26: 7 | N26: 0.2 | O26: 0.3
K27: Jun | L27: 0 | M27: 12 | N27: 0.32 | O27: 0.57
K28: Jul | L28: 1 | M28: 10 | N28: 0.51 | O28: 0.62
K29: Aug | L29: 0 | M29: 5 | N29: 0.47 | O29: 0.68
K30: Sep | L30: 0 | M30: 10 | N30: 0.39 | O30: 0.55
K31: Oct | L31: 0 | M31: 16 | N31: 0.37 | O31: 0.75
K32: Nov | L32: 0 | M32: 12 | N32: 0.3 | O32: 0.68
K33: Dec | L33: 0 | M33: 11 | N33: 0.3 | O33: 0.55
K34: Annual | L34: =AVERAGE(L22:L33) -> 0.08333333333 | M34: =MAX(M22:M33) -> 16 | N34: =AVERAGE(N22:N33) -> 0.2791666667 | O34: =MAX(O22:O33) -> 0.75
A48: Comments :

Sheet Particulates
A1: =+'Cover Page'!$B$29 -> Annual Performance Report 2025 | E1: =+'Cover Page'!$B$33 -> Ferrybridge 2
A3: Monitoring of Particulate matter emissions | D3: Whole Installation | G3: See Notes in Cell Q3 | J3: =+A3 -> Monitoring of Particulate matter emissions | N3: Per Combustion Line | Q3: Notes:
A5: =+'Cover Page'!C39 -> 2025 | B5: 1/2 Hourly Reference Periods | E5: Daily Reference Periods | Q5: User to add logic to complete Whole installation, Table A5:G18. From the data in Per Combustion Line, Table J6:O79, subject to No. of lines installed
A6: mg/Nm3 | B6: 1/2 hourly PM ELV | C6: Monthly mean of half-hourly averages | D6: Highest half- hourly average | E6: Daily PM ELV | F6: Monthly mean of daily averages | G6: Highest daily average | J6: =+A5 -> 2025 | K6: mg/Nm3 | L6: Monthly mean of half-hourly averages | M6: Highest half- hourly average | N6: Monthly mean of daily averages | O6: Highest daily average
A7: Jan | B7: 30 | C7: =AVERAGE(L7, L22) -> 1 | D7: =MAX(M7, M22) -> 2 | E7: 5 | F7: =AVERAGE(N7, N22) -> 0.61 | G7: =MAX(O7, O22) -> 1.08 | J7: A1 | K7: Jan | L7: 1 | M7: 2 | N7: 0.71 | O7: 1.08
A8: Feb | B8: 30 | C8: =AVERAGE(L8, L23) -> 1 | D8: =MAX(M8, M23) -> 2 | E8: 5 | F8: =AVERAGE(N8, N23) -> 0.61 | G8: =MAX(O8, O23) -> 0.82 | K8: Feb | L8: 1 | M8: 1 | N8: 0.63 | O8: 0.71
A9: Mar | B9: 30 | C9: 1 | D9: 2 | E9: 5 | F9: 0.645 | G9: 0.94 | K9: Mar | L9: 1 | M9: 1 | N9: 0.66 | O9: 0.7
A10: Apr | B10: 30 | C10: 1 | D10: 4 | E10: 5 | F10: 0.63 | G10: 1.09 | K10: Apr | L10: 1 | M10: 1 | N10: 0.66 | O10: 0.76 | Q10: Whole Installation table A5:G18:
A11: May | B11: 30 | C11: 1 | D11: 56 | E11: 5 | F11: 0.76 | G11: 2.12 | K11: May | L11: 1 | M11: 56 | N11: 0.71 | O11: 1.93 | Q11: Mean: for 1/2 hourly and daily periods calculate mean of values across all operational combustion lines for the month
A12: Jun | B12: 30 | C12: 1 | D12: 2 | E12: 5 | F12: 0.65 | G12: 1.12 | K12: Jun | L12: 1 | M12: 2 | N12: 0.66 | O12: 1.12
A13: Jul | B13: 30 | C13: 1 | D13: 3 | E13: 5 | F13: 0.615 | G13: 0.99 | K13: Jul | L13: 1 | M13: 3 | N13: 0.62 | O13: 0.86
A14: Aug | B14: 30 | C14: 1 | D14: 2 | E14: 5 | F14: 0.755 | G14: 1.75 | K14: Aug | L14: 1 | M14: 2 | N14: 0.82 | O14: 1.75 | Q14: Maximum: for 1/2 hourly and daily periods use the highest value across all operational combustion lines for the month
A15: Sep | B15: 30 | C15: 1 | D15: 106 | E15: 5 | F15: 0.93 | G15: 3.96 | K15: Sep | L15: 1 | M15: 3 | N15: 0.89 | O15: 2.27
A16: Oct | B16: 30 | C16: 1 | D16: 6 | E16: 5 | F16: 0.84 | G16: 2.67 | K16: Oct | L16: 1 | M16: 2 | N16: 0.72 | O16: 1.15
A17: Nov | B17: 30 | C17: 1 | D17: 53 | E17: 5 | F17: 0.93 | G17: 8.83 | K17: Nov | L17: 1 | M17: 53 | N17: 1.12 | O17: 8.83
A18: Dec | B18: 30 | C18: 1 | D18: 33 | E18: 5 | F18: 0.86 | G18: 2.69 | K18: Dec | L18: 1 | M18: 3 | N18: 0.9 | O18: 1.55
K19: Annual | L19: =AVERAGE(L7:L18) -> 1 | M19: =MAX(M7:M18) -> 56 | N19: =AVERAGE(N7:N18) -> 0.7583333333 | O19: =MAX(O7:O18) -> 8.83
J21: =+A5 -> 2025 | K21: mg/Nm3 | L21: Monthly mean of half-hourly averages | M21: Highest half- hourly average | N21: Monthly mean of daily averages | O21: Highest daily average
J22: A2 | K22: Jan | L22: 1 | M22: 2 | N22: 0.51 | O22: 0.79
K23: Feb | L23: 1 | M23: 2 | N23: 0.59 | O23: 0.82
K24: Mar | L24: 1 | M24: 2 | N24: 0.63 | O24: 0.94
K25: Apr | L25: 1 | M25: 4 | N25: 0.6 | O25: 1.09
K26: May | L26: 1 | M26: 50 | N26: 0.81 | O26: 2.12
K27: Jun | L27: 1 | M27: 2 | N27: 0.64 | O27: 0.89
K28: Jul | L28: 1 | M28: 2 | N28: 0.61 | O28: 0.99
K29: Aug | L29: 1 | M29: 2 | N29: 0.69 | O29: 1
K30: Sep | L30: 1 | M30: 106 | N30: 0.97 | O30: 3.96
K31: Oct | L31: 1 | M31: 6 | N31: 0.96 | O31: 2.67
K32: Nov | L32: 1 | M32: 5 | N32: 0.74 | O32: 1.31
K33: Dec | L33: 1 | M33: 33 | N33: 0.82 | O33: 2.69
K34: Annual | L34: =AVERAGE(L22:L33) -> 1 | M34: =MAX(M22:M33) -> 106 | N34: =AVERAGE(N22:N33) -> 0.7141666667 | O34: =MAX(O22:O33) -> 3.96
A48: Comments :

Sheet NH3
A1: =+'Cover Page'!$B$29 -> Annual Performance Report 2025 | E1: =+'Cover Page'!$B$33 -> Ferrybridge 2
A3: Monitoring of Ammnonia emissions | D3: Whole Installation | G3: See Notes in Cell Q3 | J3: =+A3 -> Monitoring of Ammnonia emissions | N3: Per Combustion Line | Q3: Notes:
Q4: User to add logic to complete Whole installation, Table A5:G18. From the data in Per Combustion Line, Table J6:O79, subject to No. of lines installed
A5: =+'Cover Page'!C39 -> 2025 | B5: 1/2 Hourly Reference Periods | E5: Daily Reference Periods
A6: mg/Nm3 | B6: 1/2 hourly NH3 ELV | C6: Monthly mean of half-hourly averages | D6: Highest half- hourly average | E6: Daily NH3 ELV | F6: Monthly mean of daily averages | G6: Highest daily average | J6: =+A5 -> 2025 | K6: mg/Nm3 | L6: Monthly mean of half-hourly averages | M6: Highest half- hourly average | N6: Monthly mean of daily averages | O6: Highest daily average
A7: Jan | B7: None | C7: =AVERAGE(L7, L22) -> 0 | D7: =MAX(M7, M22) -> 1 | E7: 15 | F7: =AVERAGE(N7, N22) -> 0.055 | G7: =MAX(O7, O22) -> 0.25 | J7: A1 | K7: Jan | L7: 0 | M7: 1 | N7: 0.02 | O7: 0.13
A8: Feb | B8: =+B7 -> None | C8: =AVERAGE(L8, L23) -> 0 | D8: =MAX(M8, M23) -> 1 | E8: 15 | F8: =AVERAGE(N8, N23) -> 0.035 | G8: =MAX(O8, O23) -> 0.16 | K8: Feb | L8: 0 | M8: 0 | N8: 0 | O8: 0
A9: Mar | B9: =+B8 -> None | C9: 0 | D9: 1 | E9: 15 | F9: 0.02 | G9: 0.07 | K9: Mar | L9: 0 | M9: 0 | N9: 0 | O9: 0.01 | Q9: Whole Installation table A5:G18:
A10: Apr | B10: None | C10: 0 | D10: 1 | E10: 15 | F10: 0.01 | G10: 0.06 | K10: Apr | L10: 0 | M10: 0 | N10: 0 | O10: 0.03 | Q10: Mean: for 1/2 hourly and daily periods calculate mean of values across all operational combustion lines for the month
A11: May | B11: None | C11: 0 | D11: 1 | E11: 15 | F11: 0.01 | G11: 0.26 | K11: May | L11: 0 | M11: 0 | N11: 0 | O11: 0.09
A12: Jun | B12: None | C12: 0 | D12: 1 | E12: 15 | F12: 0.025 | G12: 0.13 | K12: Jun | L12: 0 | M12: 1 | N12: 0 | O12: 0.1
A13: Jul | B13: None | C13: 0 | D13: 0 | E13: 15 | F13: 0.02 | G13: 0.11 | K13: Jul | L13: 0 | M13: 0 | N13: 0 | O13: 0.05 | Q13: Maximum: for 1/2 hourly and daily periods use the highest value across all operational combustion lines for the month
A14: Aug | B14: None | C14: 0 | D14: 2 | E14: 15 | F14: 0.04 | G14: 0.19 | K14: Aug | L14: 0 | M14: 0 | N14: 0 | O14: 0.02
A15: Sep | B15: None | C15: 0 | D15: 1 | E15: 15 | F15: 0.025 | G15: 0.22 | K15: Sep | L15: 0 | M15: 0 | N15: 0 | O15: 0.03
A16: Oct | B16: None | C16: 0 | D16: 1 | E16: 15 | F16: 0.05 | G16: 0.37 | K16: Oct | L16: 0 | M16: 1 | N16: 0.01 | O16: 0.14
A17: Nov | B17: None | C17: 0 | D17: 1 | E17: 15 | F17: 0.015 | G17: 0.12 | K17: Nov | L17: 0 | M17: 1 | N17: 0 | O17: 0.12
A18: Dec | B18: None | C18: 0 | D18: 0 | E18: 15 | F18: 0.015 | G18: 0.08 | K18: Dec | L18: 0 | M18: 0 | N18: 0 | O18: 0.02
K19: Annual | L19: =AVERAGE(L7:L18) -> 0 | M19: =MAX(M7:M18) -> 1 | N19: =AVERAGE(N7:N18) -> 0.0025 | O19: =MAX(O7:O18) -> 0.14
J21: =+A5 -> 2025 | K21: mg/Nm3 | L21: Monthly mean of half-hourly averages | M21: Highest half- hourly average | N21: Monthly mean of daily averages | O21: Highest daily average
J22: A2 | K22: Jan | L22: 0 | M22: 1 | N22: 0.09 | O22: 0.25
K23: Feb | L23: 0 | M23: 1 | N23: 0.07 | O23: 0.16
K24: Mar | L24: 0 | M24: 1 | N24: 0.04 | O24: 0.07
K25: Apr | L25: 0 | M25: 1 | N25: 0.02 | O25: 0.06
K26: May | L26: 0 | M26: 1 | N26: 0.02 | O26: 0.26
K27: Jun | L27: 0 | M27: 1 | N27: 0.05 | O27: 0.13
K28: Jul | L28: 0 | M28: 0 | N28: 0.04 | O28: 0.11
K29: Aug | L29: 0 | M29: 2 | N29: 0.08 | O29: 0.19
K30: Sep | L30: 0 | M30: 1 | N30: 0.05 | O30: 0.22
K31: Oct | L31: 0 | M31: 1 | N31: 0.09 | O31: 0.37
K32: Nov | L32: 0 | M32: 0 | N32: 0.03 | O32: 0.08
K33: Dec | L33: 0 | M33: 0 | N33: 0.03 | O33: 0.08
K34: Annual | L34: =AVERAGE(L22:L33) -> 0 | M34: =MAX(M22:M33) -> 2 | N34: =AVERAGE(N22:N33) -> 0.05083333333 | O34: =MAX(O22:O33) -> 0.37
A48: Comments :
A49: An indicated ELV value of zero in the table above means that no ammonia limit is/was set in the permit.

Sheet CO 95% 10 min
A1: =+'Cover Page'!$B$29 -> Annual Performance Report 2025 | E1: =+'Cover Page'!$B$33 -> Ferrybridge 2
A3: Monitoring of Carbon Monoxide (10-minute avg) | E3: Whole Installation | H3: See Notes in Cell S3 | J3: =+A3 -> Monitoring of Carbon Monoxide (10-minute avg) | O3: Per Combustion Line | Q3: Notes: | S3: Notes:
S5: User to add logic to complete Whole installation, Table A5:H18. From the data in Per Combustion Line, Table K6:Q79, subject to No. of lines installed
A6: =+'Cover Page'!C39 -> 2025 | B6: 10-minute Reference Periods | F6: Daily Reference Periods
A7: mg/Nm3 | B7: 95%ile 10-min avg CO ELV | C7: Highest daily 95%ile 10-min average | D7: Monthly mean of 10-min averages | E7: Highest 10-min average | F7: Daily CO ELV | G7: Monthly mean of daily averages | H7: Highest daily average | K7: =+A6 -> 2025 | L7: mg/Nm3 | M7: Highest daily 95%ile 10-min average | N7: Monthly mean of 10-min averages | O7: Highest 10-min average | P7: Monthly mean of daily averages | Q7: Highest daily average
A8: Jan | B8: 150 | C8: =MAX(M5, M23) -> 25 | D8: =AVERAGE(N5, N23) -> 2 | E8: =MAX(O5, O23) -> 2112 | F8: 50 | G8: =AVERAGE(P5, P23) -> 2.41 | H8: =MAX(Q5, Q23) -> 17.1 | K8: A1 | L8: Jan | M8: 25 | N8: 4 | O8: 332 | P8: 3.68 | Q8: 8.95
A9: Feb | B9: =+B8 -> 150 | C9: =MAX(M6, M24) -> 12 | D9: =AVERAGE(N6, N24) -> 3 | E9: =MAX(O6, O24) -> 5044 | F9: =+F8 -> 50 | G9: =AVERAGE(P6, P24) -> 3.1 | H9: =MAX(Q6, Q24) -> 35.28 | L9: Feb | M9: 10 | N9: 3 | O9: 403 | P9: 3.09 | Q9: 5.96
A10: Mar | B10: =+B9 -> 150 | C10: 17 | D10: 2 | E10: 201 | F10: =+F9 -> 50 | G10: 2.27 | H10: 5.33 | L10: Mar | M10: 9 | N10: 3 | O10: 376 | P10: 2.78 | Q10: 6.48 | S10: Whole Installation table A5:H18:
A11: Apr | B11: 150 | C11: 25 | D11: 3.5 | E11: 332 | F11: 50 | G11: 3.405 | H11: 8.95 | L11: Apr | M11: 13 | N11: 2 | O11: 399 | P11: 2.43 | Q11: 6.02 | S11: Mean: for 10-min and daily periods use average of all operational combustion lines.
A12: May | B12: 150 | C12: 10 | D12: 4 | E12: 3979 | F12: 50 | G12: 3.795 | H12: 27.05 | L12: May | M12: 15 | N12: 3 | O12: 464 | P12: 2.98 | Q12: 7.97
A13: Jun | B13: 150 | C13: 11 | D13: 4 | E13: 2835 | F13: 50 | G13: 3.92 | H13: 22.01 | L13: Jun | M13: 12 | N13: 2 | O13: 667 | P13: 5.73 | Q13: 94.7
A14: Jul | B14: 150 | C14: 85 | D14: 5.5 | E14: 3186 | F14: 50 | G14: 5.72 | H14: 27.46 | L14: Jul | M14: 30 | N14: 3 | O14: 388 | P14: 2.6 | Q14: 8.89 | S14: Maximum: for 10-min and daily periods use the highest of all operational combustion lines in any month.
A15: Aug | B15: 150 | C15: 94 | D15: 6.5 | E15: 486 | F15: 50 | G15: 6.415 | H15: 22.8 | L15: Aug | M15: 16 | N15: 3 | O15: 577 | P15: 3.14 | Q15: 8.3
A16: Sep | B16: 150 | C16: 72 | D16: 5 | E16: 2903 | F16: 50 | G16: 6.835 | H16: 94.7 | L16: Sep | M16: 14 | N16: 2 | O16: 455 | P16: 2.29 | Q16: 5.49
A17: Oct | B17: 150 | C17: 127 | D17: 9 | E17: 6210 | F17: 50 | G17: 7.865 | H17: 66.4 | L17: Oct | M17: 9 | N17: 2 | O17: 247 | P17: 1.82 | Q17: 4.03
A18: Nov | B18: 150 | C18: 16 | D18: 5.5 | E18: 6347 | F18: 50 | G18: 5.355 | H18: 68.43 | L18: Nov | M18: 12 | N18: 2 | O18: 359 | P18: 1.89 | Q18: 8.73
A19: Dec | B19: 150 | C19: 51 | D19: 5 | E19: 3178 | F19: 50 | G19: 5.05 | H19: 30.72 | L19: Dec | M19: 10 | N19: 2 | O19: 315 | P19: 2.45 | Q19: 5.32
L20: Annual | M20: =AVERAGE(M8:M19) -> 14.58333333 | N20: =AVERAGE(N8:N19) -> 2.583333333 | O20: =MAX(O8:O19) -> 667 | P20: =AVERAGE(P8:P19) -> 2.906666667 | Q20: =MAX(Q8:Q19) -> 94.7
K22: =+A6 -> 2025 | L22: mg/Nm3 | M22: Highest daily 95%ile 10-min average | N22: Monthly mean of 10-min averages | O22: Highest 10-min average | P22: Monthly mean of daily averages | Q22: Highest daily average
K23: A2 | L23: Jan | M23: 25 | N23: 2 | O23: 2112 | P23: 2.41 | Q23: 17.1
L24: Feb | M24: 12 | N24: 3 | O24: 5044 | P24: 3.1 | Q24: 35.28
L25: Mar | M25: 17 | N25: 2 | O25: 201 | P25: 2.27 | Q25: 5.33
L26: Apr | M26: 13 | N26: 3 | O26: 306 | P26: 3.13 | Q26: 6.45
L27: May | M27: 9 | N27: 5 | O27: 3979 | P27: 4.5 | Q27: 27.05
L28: Jun | M28: 11 | N28: 5 | O28: 2835 | P28: 5.06 | Q28: 22.01
L29: Jul | M29: 85 | N29: 9 | O29: 3186 | P29: 9.01 | Q29: 27.46
L30: Aug | M30: 94 | N30: 10 | O30: 486 | P30: 9.85 | Q30: 22.8
L31: Sep | M31: 72 | N31: 8 | O31: 2903 | P31: 7.94 | Q31: 23.1
L32: Oct | M32: 127 | N32: 15 | O32: 6210 | P32: 13.13 | Q32: 66.4
L33: Nov | M33: 11 | N33: 8 | O33: 6347 | P33: 7.57 | Q33: 68.43
L34: Dec | M34: 51 | N34: 8 | O34: 3178 | P34: 7.81 | Q34: 30.72
L35: Annual | M35: =AVERAGE(M23:M34) -> 43.91666667 | N35: =AVERAGE(N23:N34) -> 6.5 | O35: =MAX(O23:O34) -> 6347 | P35: =AVERAGE(P23:P34) -> 6.315 | Q35: =MAX(Q23:Q34) -> 68.43
A49: Comments :
A50: Environment Agency explanatory note: The 10-minute average ELV is based on the “95th percentile”. In this case this means that 95% of the 10 minute averages in the relevant 24-hour period (i.e. 137) must be below 150 mg/Nm3, and 5% (i.e. 7) are allowed to be any value above 150 mg/Nm3. Whilst we expect operators to minimise CO emissions at all times, it is perfectly acceptable for the value of the maximum 10-minute average to be above 150 mg/Nm3, provided the 95th percentile ELV has been met for that period.

Sheet CO 0.5 hourly
A1: =+'Cover Page'!$B$29 -> Annual Performance Report 2025 | E1: =+'Cover Page'!$B$33 -> Ferrybridge 2
A3: Monitoring of Carbon Monoxide (half hourly) | D3: Whole Installation | G3: See Notes in Cell Q3 | J3: =+A3 -> Monitoring of Carbon Monoxide (half hourly) | N3: Per Combustion Line | Q3: Notes:
A5: Please complete this tab for your plant if you have 1/2 hourly CO ELVs; otherwise, leave it blank and complete the CO 95% 10 min tab
Q7: User to add logic to complete Whole installation, Table A5:G18. From the data in Per Combustion Line, Table J6:O79, subject to No. of lines installed
A8: =+'Cover Page'!C39 -> 2025 | B8: 1/2 Hourly Reference Periods | E8: Daily Reference Periods
A9: mg/Nm3 | B9: 1/2 hourly CO ELV | C9: Monthly mean of half-hourly averages | D9: Highest half- hourly average | E9: Daily CO ELV | F9: Monthly mean of daily averages | G9: Highest daily average | J9: =+A8 -> 2025 | K9: mg/Nm3 | L9: Monthly mean of half-hourly averages | M9: Highest half- hourly average | N9: Monthly mean of daily averages | O9: Highest daily average
A10: Jan | B10: 100 | E10: 50 | J10: A1 | K10: Jan
A11: Feb | B11: =+B10 -> 100 | E11: =+E10 -> 50 | K11: Feb
A12: Mar | B12: =+B11 -> 100 | E12: =+E11 -> 50 | K12: Mar | Q12: Whole Installation table A5:G18:
A13: Apr | B13: 100 | E13: 50 | K13: Apr | Q13: Mean: for 1/2 hourly and daily periods calculate mean of values across all operational combustion lines for the month
A14: May | B14: 100 | E14: 50 | K14: May
A15: Jun | B15: 100 | E15: 50 | K15: Jun
A16: Jul | B16: 100 | E16: 50 | K16: Jul | Q16: Maximum: for 1/2 hourly and daily periods use the highest value across all operational combustion lines for the month
A17: Aug | B17: 100 | E17: 50 | K17: Aug
A18: Sep | B18: 100 | E18: 50 | K18: Sep
A19: Oct | B19: 100 | E19: 50 | K19: Oct
A20: Nov | B20: 100 | E20: 50 | K20: Nov
A21: Dec | B21: 100 | E21: 50 | K21: Dec
K22: Annual | L22: =AVERAGE(L10:L21) ->  | M22: =MAX(M10:M21) -> 0 | N22: =AVERAGE(N10:N21) ->  | O22: =MAX(O10:O21) -> 0
J24: =+A8 -> 2025 | K24: mg/Nm3 | L24: Monthly mean of half-hourly averages | M24: Highest half- hourly average | N24: Monthly mean of daily averages | O24: Highest daily average
J25: A2 | K25: Jan
K26: Feb
K27: Mar
K28: Apr
K29: May
K30: Jun
K31: Jul
K32: Aug
K33: Sep
K34: Oct
K35: Nov
K36: Dec
K37: Annual | L37: =AVERAGE(L25:L36) ->  | M37: =MAX(M25:M36) -> 0 | N37: =AVERAGE(N25:N36) ->  | O37: =MAX(O25:O36) -> 0
J39: =+A8 -> 2025 | K39: mg/Nm3 | L39: Monthly mean of half-hourly averages | M39: Highest half- hourly average | N39: Monthly mean of daily averages | O39: Highest daily average
J40: A3 | K40: Jan
K41: Feb
K42: Mar
K43: Apr
K44: May
K45: Jun
K46: Jul
K47: Aug
K48: Sep
K49: Oct
K50: Nov
A51: Comments : | K51: Dec
K52: Annual | L52: =AVERAGE(L40:L51) ->  | M52: =MAX(M40:M51) -> 0 | N52: =AVERAGE(N40:N51) ->  | O52: =MAX(O40:O51) -> 0
J54: =+A8 -> 2025 | K54: mg/Nm3 | L54: Monthly mean of half-hourly averages | M54: Highest half- hourly average | N54: Monthly mean of daily averages | O54: Highest daily average
J55: A4 | K55: Jan
K56: Feb
K57: Mar
K58: Apr
K59: May
K60: Jun
K61: Jul
K62: Aug
K63: Sep
K64: Oct
K65: Nov
K66: Dec
K67: Annual | L67: =AVERAGE(L55:L66) ->  | M67: =MAX(M55:M66) -> 0 | N67: =AVERAGE(N55:N66) ->  | O67: =MAX(O55:O66) -> 0
J69: =+A8 -> 2025 | K69: mg/Nm3 | L69: Monthly mean of half-hourly averages | M69: Highest half- hourly average | N69: Monthly mean of daily averages | O69: Highest daily average
J70: A5 | K70: Jan
K71: Feb
K72: Mar
K73: Apr
K74: May
K75: Jun
K76: Jul
K77: Aug
K78: Sep
K79: Oct
K80: Nov
K81: Dec
K82: Annual | L82: =AVERAGE(L70:L81) ->  | M82: =MAX(M70:M81) -> 0 | N82: =AVERAGE(N70:N81) ->  | O82: =MAX(O70:O81) -> 0

Sheet Template changes log
A1: Log of changes to template (Environment Agency use only)
A3: Date | B3: Description of change | C3: New version number and date
A4: 2024-01-16 | B4: Air (periodic) tab: corrected default O2 reference from 6 to 11% | C4: Version 23.5a (for incinerators) - 16/01/2024
A5: 2024-09-23 | B5: Air (periodic) tab: corrected symbol for Thallium to Tl
A6: 2024-09-23 | B6: Air (periodic) tab: removed last year's references to different emission limit values applying from 03/12/23 and updated all relevant ELVs
A7: 2024-09-23 | B7: Tabs for continuously monitored pollutants (HCl, SO2 etc.): changed terminology in table headings to improve clarity
A8: 2024-09-23 | B8: Tabs for continuously monitored pollutants (HCl, SO2 etc.): removed last year's references to different emission limit values applying from 03/12/23 and updated all relevant ELVs
A9: 2024-09-23 | B9: Perf 1 tab: updated formula for water usage to report m3 rather than litres and corrected error with formula copying operator name
A10: 2024-09-23 | B10: Operational Summary tab: table added on start-ups and shut-downs
A11: 2024-09-23 | B11: Operational Summary tab: table added on dioxins and mercury protocols
A12: 2024-09-23 | B12: Operational Summary tab: table added on AST, QAL 2 and calibration functions
A13: 2024-09-23 | B13: CO2 N2O tab: various changes made to notes to reflect the fact that most plants should now have calibrated CEMS and flow meters + some have C14 samplers and more up to date industry data | C13: Version 24a (for incinerators) - 23/09/24
A14: 2024-11-08 | B14: CO2 N2O tab: Changed the N2O CO2 equivalence factor from 298 to 265 in line with recently updated government greenhouse gas figures: https://www.gov.uk/government/publications/greenhouse-gas-reporting-conversion-factors-2024
A15: 2024-11-08 | B15: CO2 N2O tab: Added an additional requirement for municipal EfW plants to state the yearly average biogenic percentage of the waste by mass, and reference to a document which sets out a methodology for calculating NCV of waste from the results of C14 sampling.
A16: 2024-11-08 | B16: Permit Compliance tab: Two additional columns added + explanatory notes to the table entitled "Summary of non-compliances under the permit" to allow CCS scores to be stated where relevant.
A17: 2024-11-08 | B17: Residue Quality tab: Note added explaining application of TOC and LOI limits and asking operators to report both metrics where measured. | C17: Version 24.1a (for incinerators) - 08/11/24
A18: 2024-11-27 | B18: Operational Summary tab: table added on start-ups and shut-downs | C18: Version 24.2a (for incinerators) - 27/11/24
A19: 2025-11-27 | B19: Cover Page: Print as PDF and Print Report and pdf buttons deleted and blank columns removed; contents page deleted | C19: Version 25.1a (for incinerators) - 27/11/25
A20: 2025-11-27 | B20: Residue Quality tab renamed to "Residues", and Summary of residue handling table moved from Operational Summary tab to Residues tab.
A21: 2025-11-27 | B21: Various changes made to the Operational Data tab including • Reformatting of the rows under the Operational data heading (Rows 3-8) to make it clearer what information is required. • Amendment of the rows under the Energy Usage / Export heading (Rows 26-32) to calculate an “indicative parasitic load” (now excluding energy imported) • Amendment of the unit for gas usage from cubic feet to cubic metres (Row 50) • Some amendments to the first 2 notes and other minor edits • Deleted "Overall Availability, mean avg. of all lines, hrs" row
A22: 2025-11-27 | B22: Operational Summary tab: Note added requiring all emergency shut-downs be listed, irrespective of whether or not they were reportable.
A23: 2025-11-27 | B23: CO2 N2O tab: Note added to ask operators to ensure that relevant data reported here matches that which will be submitted under the Pollution Inventory
